Cogmind - Beta 16.1 @@@ ROGUE MODE // 2026.05.01 @ 16:05:56 Player: spider Result: Destroyed by Executioner with Helical Railgun Performance ------------- Evolutions (9) 4500 Regions Visited (34) 6800 Robots Destroyed (869) 4345 Value Destroyed (55450) 55450 Prototype IDs (124) 2480 Alien Tech Used (7) 1400 Bonus (38525) 38525 TOTAL SCORE: 113500 Bonus ------- Triggered High Security 1000 High Alert Combat Kills 25232 Follower Combat Kills 2553 Hunted by Unchained 500 Entered Garrisons 1000 Network Hubs Disabled 200 Acquired ECA 300 Met Zhirov 300 Met Warlord at Base 500 MAIN.C Attacked Warlord 500 Warlord Defense Kills 3770 Built Enhanced Grunts 300 Met R17 at Cetus 500 Met R17 at Research 2000 Scanned by Researcher 500 Friendly Fire -630 Cogmind --------- Core Integrity 0/1600 Matter 1020/1050 Energy 363/1950 System Corruption 55% Temperature Cool (0) Movement Core (1150) Ox22 Location -1/Access Parts ------- > --- POWER (4) -------- Quantum Reactor > --- PROPULSION (6) --- (None) > --- UTILITY (11) ----- Concept Thermoelectric Network Concept Antigrav Storage Unit Concept Chromion Battery Concept Chromion Battery Concept NT7 Matterbank Experimental Targeting Computer Experimental Core Analyzer Concept Reaction Jets Concept RG22 Armor Concept RG22 Armor Advanced Hacking Suite > --- WEAPON (4) ------- (None) > --- INVENTORY (25) --- (None) Peak State ------------ > --- POWER ------------ Micro Antimatter Reactor Improved Quantum Reactor Improved Quantum Reactor Improved Quantum Reactor > --- PROPULSION ------- Heavy Treads Enhanced Armored Heavy Treads Advanced Heavy Siege Treads > --- UTILITY ---------- Concept Thermoelectric Network Concept Antigrav Storage Unit Experimental Optical Array Experimental Targeting Computer Concept Core Analysis Suite Concept Cloak Mesh Concept Cloak Mesh Centrium Heavy Armor Plating Concept RG22 Armor Concept RG22 Armor > --- WEAPON ----------- Nova Cannon Nova Cannon Enhanced Nova Cannon Concept Arcsight Missile Launcher > --- INVENTORY -------- Quantum Reactor Armored Medium Treads Spiked Heavy Treads Concept Thermoelectric Network Concept Chromion Battery Concept Chromion Battery Concept NT7 Matterbank Experimental Core Analyzer Concept Reaction Jets Advanced Hacking Suite Concept Matter Streamer High-powered Transdimensional Reconstructor Subatomic Replicator Nova Cannon Enhanced Nova Cannon Concept Plasma Driver Concept Plasma Driver Core Cannon Helical Railgun Helical Railgun Compact Linear Accelerator Concept Rapid Grenade Launcher [Rating: 273] Favorites ----------- Power Antimatter Reactor Engine Ion Engine Power Core Light Neutrino Core Reactor Antimatter Reactor Propulsion Centrium Heavy Treads Treads Centrium Heavy Treads Leg Cargo Legs Wheel Armored Huge Wheel Hover Unit Cooled Aerolev Unit Flight Unit VTOL Module Utility High-capacity Storage Unit Device Advanced Cooling System Storage High-capacity Storage Unit Processor Core Analyzer Hackware Experimental Hacking Suite Protection Makeshift Light Armor Plating Weapon Enhanced Nova Cannon Energy Gun Subdweller Laser Energy Cannon Enhanced Nova Cannon Ballistic Gun Enhanced Autogun Ballistic Cannon Hypervelocity Mass Driver Launcher Concept Arcsight Missile Launcher Special Weapon Improved Plasma Cutter Impact Weapon Core Stripper Slashing Weapon Ripper Piercing Weapon Makeshift Spear Build | -11 -10 -10 -8 -8 -8 -8 -7 -7 -7 -7 -6 -6 -6 -6 -6 -6 -5 -5 -5 -5 -4 -4 -4 -4 -4 -4 -4 -3 -3 -3 -3 -2 -2 -1 ------- Run | Yrd Mat Sub Mat Gar Mat Gar Fac Gar Fac Gar Fac Ext Cet Arc Hub Gar Fac Upp Upp Zhi Pro Fac Was Fac Upp Upp War Pro Res Qua Frg Res Tes Acc Slots Evolved 18 | . . . 4 . . . 2 . . . 2 . . . . . 2 . . . . 2 . . . . . . 2 . . 2 . 2 Power 3 | . . . . . . . 1 . . . . . . . . . . . . . . . . . . . . . . . . 1 . 1 Propulsion 4 | . . . 2 . . . . . . . 2 . . . . . . . . . . . . . . . . . . . . . . . Utility 9 | . . . 2 . . . 1 . . . . . . . . . 2 . . . . 1 . . . . . . 2 . . 1 . . Weapon 2 | . . . . . . . . . . . . . . . . . . . . . . 1 . . . . . . . . . . . 1 Parts Attached 381 | 3 7 19 12 6 7 13 5 8 21 14 16 17 10 9 3 9 20 4 3 2 4 13 7 11 2 1 12 . 4 27 31 34 9 18 Power 40 | . 1 1 1 . . 2 1 1 . 2 2 2 2 1 . 1 2 . 1 . . 1 2 . . 1 2 . . 1 1 7 2 3 Engine 10 | . . 1 1 . . 1 1 1 . 2 1 . . . . 1 . . 1 . . . . . . . . . . . . . . . Core 9 | . 1 . . . . 1 . . . . 1 2 1 . . . 1 . . . . 1 . . . . 1 . . . . . . . Reactor 21 | . . . . . . . . . . . . . 1 1 . . 1 . . . . . 2 . . 1 1 . . 1 1 7 2 3 Propulsion 78 | 2 . 2 3 1 2 7 4 2 5 5 7 3 4 2 . 3 2 1 . . 2 2 2 1 . . 1 . 1 4 1 5 1 3 Treads 58 | 2 . 1 3 1 2 7 3 2 2 1 . . 4 2 . 3 2 1 . . 2 2 2 1 . . 1 . 1 4 1 4 1 3 Leg 2 | . . 1 . . . . . . . 1 . . . . . . . . . . . . . . . . . . . . . . . . Wheel 2 | . . . . . . . . . 1 . . . . . . . . . . . . . . . . . . . . . . 1 . . Hover 11 | . . . . . . . 1 . 1 . 6 3 . . . . . . . . . . . . . . . . . . . . . . Flight 5 | . . . . . . . . . 1 3 1 . . . . . . . . . . . . . . . . . . . . . . . Utility 167 | . 2 8 5 2 3 2 . 3 13 5 6 6 2 4 3 4 14 2 1 2 1 6 3 7 1 . 3 . 3 15 18 13 3 7 Device 79 | . . 2 2 2 2 . . . 5 2 4 3 2 3 1 1 5 2 1 1 1 3 1 4 1 . 1 . 2 7 8 7 2 4 Storage 11 | . 1 . . . 1 . . 1 . . 1 . . . . . . . . . . . . . . . 1 . . 2 4 . . . Processor 16 | . . . . . . . . . . . . 2 . . . . 3 . . . . 1 . . . . 1 . 1 . 2 4 . 2 Hackware 4 | . . . . . . . . . 1 . . . . . . . . . . . . 1 . 1 . . . . . . . . . 1 Protection 57 | . 1 6 3 . . 2 . 2 7 3 1 1 . 1 2 3 6 . . 1 . 1 2 2 . . . . . 6 4 2 1 . Artifact . | . . . . . . . . . . . . . . . . . . . . . . . . . . . . . . . . . . . Weapon 96 | 1 4 8 3 3 2 2 . 2 3 2 1 6 2 2 . 1 2 1 1 . 1 4 . 3 1 . 6 . . 7 11 9 3 5 Energy Gun 9 | . 1 2 . . . . . . . . . . . . . . . . . . . 1 . . . . 2 . . . 2 . . 1 Energy Cannon 29 | . . 1 . 1 . 1 . . 1 . . . 2 . . 1 . . . . . 2 . 2 1 . 3 . . 3 3 4 3 1 Ballistic Gun 22 | 1 3 4 3 . 1 1 . . . 1 . . . 2 . . . . 1 . . . . . . . . . . . . 3 . 2 Ballistic Cannon 8 | . . . . . . . . . . . 1 2 . . . . . . . . . 1 . . . . . . . 1 1 1 . 1 Launcher 19 | . . . . 2 1 . . . 2 1 . 1 . . . . 2 . . . 1 . . 1 . . 1 . . 2 4 1 . . Special Weapon 2 | . . . . . . . . 1 . . . . . . . . . 1 . . . . . . . . . . . . . . . . Impact Weapon 1 | . . . . . . . . . . . . . . . . . . . . . . . . . . . . . . 1 . . . . Slashing Weapon 4 | . . . . . . . . 1 . . . 3 . . . . . . . . . . . . . . . . . . . . . . Piercing Weapon 2 | . . 1 . . . . . . . . . . . . . . . . . . . . . . . . . . . . 1 . . . Special Melee Weapon . | . . . . . . . . . . . . . . . . . . . . . . . . . . . . . . . . . . . Unidentified Prototypes 64 | . . 2 2 . . . 2 . 3 . 2 . 3 1 1 . 2 . . 3 . . 1 2 . . 9 . 1 11 7 7 3 2 Corrupted Parts 7 | . . . . . . . . 1 . . . . 1 4 . . . . . . . . . . . . . . . 1 . . . . System Corruption 32 | . . . . . . . . 4 . . . . 4 14 . . . . . . . . . . . . . . . 10 . . . . Parts Lost 111 | . 1 3 3 1 1 2 . 2 3 16 . 2 1 . 1 8 9 . . . 2 1 . 1 . . . . . . 17 1 6 30 Power 19 | . . 1 1 . . 2 . 1 . 3 . . . . . 1 2 . . . . 1 . . . . . . . . 2 . 1 4 Propulsion 25 | . . 1 . . . . . . 1 6 . 2 . . . 2 2 . . . 2 . . . . . . . . . 3 . . 6 Utility 37 | . . . 1 1 . . . . 2 3 . . 1 . 1 4 3 . . . . . . . . . . . . . 10 . 4 7 Weapon 30 | . 1 1 1 . 1 . . 1 . 4 . . . . . 1 2 . . . . . . 1 . . . . . . 2 1 1 13 Highest Loss Streak 16 | . 1 2 1 1 1 1 . 1 1 16 . 1 1 . 1 2 5 . . . 1 1 . 1 . . . . . . 4 1 3 13 To Critical Strikes 2 | . . . . . . . . . . . . . . . . . . . . . . . . . . . . . . . 2 . . . Average Backups 19 | 6 14 19 19 19 23 24 24 23 24 19 6 18 19 18 18 18 17 17 18 17 16 18 18 17 18 18 17 17 16 17 19 22 22 19 Power . | 1 1 . . . . . 1 . 1 . . 1 1 1 1 1 . . . . . . . 1 1 1 . 1 1 1 . 1 2 . Propulsion 2 | 3 3 3 5 6 6 7 6 4 3 1 1 3 2 1 1 1 1 . 1 2 . . . 1 1 1 . 1 1 . . . 1 1 Utility 8 | . 4 8 5 5 7 7 8 9 11 10 3 10 7 7 9 9 10 13 11 11 10 11 11 10 10 10 10 10 9 7 9 11 9 8 Weapon 5 | 1 4 5 7 8 9 8 8 7 7 5 . 2 6 7 6 6 4 3 3 3 3 3 3 3 4 4 4 4 4 5 5 7 7 7 Tool/Special . | . . . . . . . . . . . . . . . . . . . . . . . . . . . . . . . . . . . Unused Backups 97 | . 4 10 11 2 1 3 4 2 4 3 1 4 5 3 2 1 5 . 3 2 . 2 3 1 . 1 . . 3 6 5 3 1 2 Power 6 | . 2 . . . . . . 1 . . . . . . . . . . . . . . 1 . . . . . 2 . . . . . Propulsion 21 | . . 3 7 . 1 . 4 . 1 . 1 . 2 . . . . . . . . . . . . . . . . 2 . . . . Utility 40 | . . 2 . . . 2 . 1 1 3 . 2 3 2 1 1 5 . 2 1 . 1 1 1 . 1 . . . 2 5 . 1 2 Weapon 25 | . 2 4 4 2 . 1 . . 2 . . 2 . 1 . . . . 1 1 . 1 . . . . . . 1 . . 3 . . Tool/Special 5 | . . 1 . . . . . . . . . . . . 1 . . . . . . . 1 . . . . . . 2 . . . . Average Slot Usage (%) 86 | . 97 92 90 92 94 99 92 95 91 75 73 82 87 82 85 85 82 75 81 71 83 82 91 87 82 84 82 84 84 81 78 76 86 74 Engine 4 | . 5 9 6 7 8 7 13 10 15 7 1 . . . . 2 4 . 4 5 5 3 . . . . . . . . . . . . Core 1 | . 8 2 . . . 1 . . . . 4 5 6 3 . . 1 5 5 5 5 6 1 . . . . 5 4 . 1 . . . Reactor 3 | . . . . . . . . . . . . . 1 8 13 9 3 . . . . . 8 10 10 10 9 5 4 3 3 10 12 13 Treads 16 | . 27 9 13 14 24 36 29 30 15 12 . . 4 23 26 25 21 22 23 23 24 23 25 18 15 15 15 15 14 15 13 12 16 10 Leg 1 | . . 7 6 7 4 . . . . 2 . . . . . . . . . . . . . . . . . . . . . . . . Hover 1 | . . . . . . . . . . . 29 39 32 . . . . . . . . . . . . . . . . . . . . . Device 10 | . . 9 6 7 7 9 9 15 9 6 9 8 10 15 6 5 13 11 11 10 11 10 9 9 10 10 9 10 18 17 19 8 12 10 Storage 7 | . 19 12 6 7 8 9 7 7 7 6 2 6 6 6 6 6 5 5 5 5 5 5 5 5 5 5 5 5 4 4 4 6 4 4 Processor 5 | . . . . . . . . . . . . 1 6 6 6 6 7 11 11 11 11 10 10 10 10 10 10 10 9 9 9 9 14 9 Hackware 1 | . . . . . . . . . 4 7 6 5 . . . . . . . . . 4 5 5 5 5 5 5 4 4 . . . . Protection 12 | . 5 16 25 26 22 18 15 15 14 10 5 4 5 3 12 12 7 5 5 5 5 5 7 10 10 10 10 10 9 10 10 13 11 10 Energy Cannon 7 | . . 3 . . 1 9 7 14 14 8 . . 2 6 8 12 10 . . . . 5 2 10 13 14 13 14 14 12 10 5 12 10 Ballistic Gun 6 | . 23 13 21 20 12 8 7 . . 1 . . . 2 3 . . 10 10 . 10 4 . . . . . . . . . 1 . . Peak Build Rating 273 | 6 11 37 62 63 63 38 48 51 54 51 65 66 87 111 105 104 110 110 112 111 113 125 126 135 136 134 135 131 152 184 223 235 240 273 Average Rating 98 | 6 9 26 56 60 51 35 42 47 49 40 50 60 70 99 98 95 101 105 109 95 102 109 111 130 131 132 128 130 145 167 190 203 232 238 On Entrance 94 | 6 6 11 34 60 63 39 35 48 47 51 17 61 66 87 99 101 87 106 105 110 111 97 124 126 128 133 132 130 130 149 181 163 235 225 Avg Prop Armor Cover (%) 7 | . . . 6 5 6 . . . 10 11 9 . . 14 . 4 . . . . 7 . 6 6 7 6 7 . . . 9 13 3 3 Naked Turns . | . . . . . . . . . . . . . . . . . . . . . . . . . . . . . . . . . . . Heaviest Build 180 | 14 53 71 81 74 111 113 125 128 131 130 60 63 88 106 115 115 116 87 92 92 97 126 129 144 135 135 137 135 138 144 148 165 178 180 Greatest Support 240 | 40 40 55 55 55 80 80 86 86 28 62 56 56 200 240 203 203 207 215 215 215 215 188 188 150 150 150 220 210 220 230 230 216 215 235 Greatest Overweight (x) 6 | . 1 1 1 1 2 1 1 1 5 4 1 1 1 2 . . 2 . . . . 1 . 1 . . . . . . . 6 1 2 Average Overweight (x) . | . . . 1 1 1 1 1 1 4 1 . . . . . . . . . . . . . . . . . . . . . 1 . . Largest Inventory Capacity 25 | 8 20 20 20 20 25 25 25 25 25 25 20 20 20 20 20 20 20 20 20 20 20 20 20 20 20 20 20 20 20 20 25 25 25 25 Average Capacity 21 | 8 17 20 20 20 24 25 25 25 25 20 11 20 20 20 20 20 20 20 20 20 20 20 20 20 20 20 20 20 20 20 22 25 25 25 Most Carried 25 | 8 20 20 20 20 25 25 25 25 25 25 13 20 20 20 20 20 20 20 20 20 20 20 20 20 20 20 20 20 20 20 25 25 25 25 Average Carried 20 | 6 14 19 19 19 23 24 24 24 24 18 6 18 19 19 19 19 19 19 19 19 18 19 19 19 20 19 19 20 19 19 21 24 24 21 Final Capacity 25 | 8 20 20 20 20 25 25 25 25 25 5 20 20 20 20 20 20 20 20 20 20 20 20 20 20 20 20 20 20 20 20 25 25 25 25 Final Carried 25 | 6 20 20 20 20 24 25 25 25 25 4 13 20 20 20 20 20 19 20 20 20 18 20 20 20 20 20 20 20 20 20 23 25 23 23 Class Distribution -------------------- 30% | Scavenger-Mutant 27% | Mutant 27% | Scavenger-Tank 7% | Tank 3% | Generator-Tank Dominant Class ---------------- Mutant | -10/Materials Mutant | -10/Subcaves Scavenger-Tank | -8/Materials Scavenger-Tank | -8/Garrison Mutant | -8/Materials Scavenger-Mutant | -8/Garrison Scavenger-Mutant | -7/Factory Scavenger-Mutant | -7/Garrison Scavenger-Mutant | -7/Factory Mutant | -7/Garrison Mutant | -6/Factory Sprinter | -6/Extension Commander-Mutant | -6/Cetus Scavenger-Mutant | -6/Archives Scavenger-Mutant | -6/Hub_04(d) Scavenger-Mutant | -6/Garrison Scavenger-Mutant | -5/Factory Scavenger-Mutant | -5/Upper Caves Scavenger-Mutant | -5/Upper Caves Scavenger-Mutant | -5/Zhirov Scavenger-Mutant | -4/Proximity Caves Scavenger-Mutant | -4/Factory Scavenger-Tank | -4/Waste Scavenger-Tank | -4/Factory Scavenger-Tank | -4/Upper Caves Scavenger-Tank | -4/Upper Caves Scavenger-Tank | -4/Warlord Scavenger-Tank | -3/Proximity Caves Scavenger-Tank | -3/Research Tank | -3/Quarantine Tank | -3/Protoforge Scavenger-Tank | -2/Research Tank | -2/Testing Generator-Tank | -1/Access Resources | -11 -10 -10 -8 -8 -8 -8 -7 -7 -7 -7 -6 -6 -6 -6 -6 -6 -5 -5 -5 -5 -4 -4 -4 -4 -4 -4 -4 -3 -3 -3 -3 -2 -2 -1 ----------- Run | Yrd Mat Sub Mat Gar Mat Gar Fac Gar Fac Gar Fac Ext Cet Arc Hub Gar Fac Upp Upp Zhi Pro Fac Was Fac Upp Upp War Pro Res Qua Frg Res Tes Acc Matter Collected 27608 | 299 292 548 817 802 262 771 . 861 640 342 221 1019 340 176 201 814 661 456 133 166 541 756 383 486 280 264 595 190 140 949 3531 826 707 8139 Remotely 5509 | . . . . . . . . . . . . . . . . . . . . . . . . . . . . . . . 369 . 133 5007 Salvage Created 35828 | 109 560 474 1241 798 334 1140 . 1290 976 382 199 850 220 624 532 937 1346 507 74 202 389 1076 260 863 292 658 805 435 768 1316 4126 814 2722 8509 Parts 1448 | 13 33 28 70 59 28 59 . 48 48 30 6 35 7 29 30 52 46 7 4 2 19 50 . 41 8 23 17 16 27 45 205 15 99 249 Haulers Intercepted 12 | . 2 . 4 . 1 . . . . . . . . . . . . . . . . . . . . . . . 3 . . . 2 . Recyclers Shooed 10 | . 4 . . . . . . . . . 1 . . . . . 1 . . . . 2 . 1 . . . . . . . . 1 . Parts Field Recycled . | . . . . . . . . . . . . . . . . . . . . . . . . . . . . . . . . . . . Retrieved Matter . | . . . . . . . . . . . . . . . . . . . . . . . . . . . . . . . . . . . Parts Self-Destructed 68 | . . 16 . . . . . . . . . . . . . . . . . 1 10 . . . 5 19 . 17 . . . . . . Prevented 3 | . . . . . . . . . . . . . . . . . . . . . . . . . . 3 . . . . . . . . Parts Restored 6 | . . . . . . . . . . . . . . . . . . . . . . . . . . . . . . . 6 . . . Faulty 6 | . . . . . . . . . . . . . . . . . . . . . . . . . . . . . . . 6 . . . Kills | -11 -10 -10 -8 -8 -8 -8 -7 -7 -7 -7 -6 -6 -6 -6 -6 -6 -5 -5 -5 -5 -4 -4 -4 -4 -4 -4 -4 -3 -3 -3 -3 -2 -2 -1 ------- Run | Yrd Mat Sub Mat Gar Mat Gar Fac Gar Fac Gar Fac Ext Cet Arc Hub Gar Fac Upp Upp Zhi Pro Fac Was Fac Upp Upp War Pro Res Qua Frg Res Tes Acc Combat Hostiles Destroyed 750 | . 10 13 20 27 8 25 . 22 21 18 1 13 4 2 13 31 33 4 . . 19 12 . 11 6 9 27 11 6 12 81 15 50 226 Melee 9 | . . . . . . . . . . 2 . 2 . . . . . . . . . . . . . . . . . . 4 1 . . Guns 78 | . 10 9 20 12 4 7 . 1 . . . . . . 2 1 2 . . . 3 2 . . . . . . . . . . . 5 Cannons 237 | . . 4 . . 1 15 . 17 9 3 1 3 4 2 9 16 14 . . . . 8 . 9 3 4 . 2 6 3 28 6 26 44 AOE 381 | . . . . 15 3 3 . 2 9 13 . 8 . . 2 13 15 4 . . 16 1 . . 3 3 27 8 . . 34 7 23 172 Classes Destroyed 33 | 2 5 3 3 5 . . . 1 . . . 2 . . . 1 . 1 . . . . . . 1 . 1 . . 1 5 1 1 . Worker 22 | . . . 1 . 2 . . . . . . . . . 1 . . . . . . 2 . . . . . . . . 1 1 3 11 Builder 23 | . 1 . 1 . . . . . 1 . . 1 . . . . 2 . . . . 2 . . . . . . . 1 2 . 1 11 Tunneler 5 | 4 . . 1 . . . . . . . . . . . . . . . . . . . . . . . . . . . . . . . Hauler 12 | . 2 . 4 . 1 . . . . . . . . . . . . . . . . . . . . . . . 3 . . . 2 . Recycler 21 | 1 1 . 2 . . . . . 2 . 1 2 . . . . 1 . . . . 2 . 1 . . . . . . . 1 . 7 Carrier 4 | . . . . . . . . . . . . . . . . . . . . . . . . . . . . . . . . . 1 3 Mechanic 20 | . . . . . . . . . . . . 1 . . . . . . . . . . . . . . . . . . 1 . 2 16 Operator 14 | . 2 . . . . . . . . . . . . 9 . . 1 . . . . 1 . . . . . . . . . . 1 . Drone 4 | . . . . . . . . . . . . . . . . . . . . . . . . . . . . . . . 4 . . . Watcher 9 | . . . . 2 . . . . . . . 1 . . . . . . . . . . . . . . . . 2 1 1 . 1 1 Swarmer 83 | . 3 3 5 11 3 3 . . 5 9 . 1 . . 3 8 4 . . . 10 . . 1 . 4 . 7 . . 3 . . . Cutter 8 | . . . . . . . . 1 . . . . . . . 4 . . . . . . . . . . . . . . . 3 . . Saboteur 14 | . . . . . . . . . . . . . . . . . . . . . . . . . . . . . . . 1 . . 13 Grunt 262 | . 7 2 7 6 2 8 . 9 8 . . 8 . . 5 8 16 3 . . 5 5 . 2 5 4 16 4 4 . 14 6 22 86 Brawler 40 | . . . . 1 . 4 . 1 . . . . . . . 2 2 1 . . . . . . 1 . 2 . . . 3 . 7 16 Duelist 34 | . . . 1 . . 1 . 1 . . . . . . . . . . . . 2 . . . . . . . . . 3 . 5 21 Protector 32 | . . . . . . . . . . . . . . . . 1 1 . . . . . . . . . 3 . . . 3 . 1 23 Researcher 3 | . . . . . . . . . . . . . . . . . . . . . . . . . . . . . . . 3 . . . Sentry 67 | . . 1 6 4 2 7 . 5 4 6 1 . . 2 4 3 2 . . . 1 2 . 3 . . . 1 2 . 10 1 . . Demolisher 4 | . . . 1 . . . . . . . . . . . . 1 . . . . . . . . . . 1 . . . . 1 . . Specialist 12 | . . . . 1 . . . . . . . . . . . 2 . . . . . . . 2 . . 2 . . . . 1 4 . Hunter 19 | . . . . 1 1 . . 1 . . . 1 . . . 1 1 . . . . 2 . . . . 1 . . 2 . . . 8 Programmer 85 | . . . . 3 . 2 . 4 4 3 . . . . 1 1 7 . . . 1 3 . 2 . . . . . 4 18 . 9 23 Behemoth 4 | . . . . . . . . . . . . 1 . . . . . . . . . . . 1 . 1 1 . . . . . . . Cetus Guard 4 | . . . . . . . . . . . . . 4 . . . . . . . . . . . . . . . . . . . . . Quarantine Guard 5 | . . . . . . . . . . . . . . . . . . . . . . . . . . . . . . 5 . . . . Enhanced Grunt 2 | . . . . . . . . . . . . . . 2 . . . . . . . . . . . . . . . . . . . . Hotshot 8 | . . . . . . . . . . . . . . . . . . . . . . . . . . . . . . . 8 . . . Decapitator 8 | . . . . . . . . . . . . . . . . . . . . . . . . . . . . . . . 8 . . . Immortal 2 | . . . . . . . . . . . . . . . . . . . . . . . . . . . . . . . 2 . . . Investigator 6 | . . . . . . . . . . . . . . . . . . . . . . . . . . . . . . . . . . 6 Striker 24 | . . . . . . . . . . . . . . . . . . . . . . . . . . . . . . . . 3 2 19 Executioner 18 | . . . . . . . . . . . . . . . . . . . . . . . . . . . 1 . . . . . . 17 Alpha 7 2 | . . . . . . . . . . . . . . . . . . . . . . . . . . . . . . . 2 . . . Fortress 1 | . . . . . . . . . . . . . . . . . . . . . . . . . . . . . . 1 . . . . V-Series 2 | . . . . . . . . . . . . . . . . . . . . . . . . . . . . . . . 2 . . . Artisan 1 | . . 1 . . . . . . . . . . . . . . . . . . . . . . . . . . . . . . . . Subdweller 7 | . . 7 . . . . . . . . . . . . . . . . . . . . . . . . . . . . . . . . Decomposer 2 | . . . . . . . . . . . . . . . . . . . . . . . . . . . . 2 . . . . . . Packrat 3 | . . . . . . . . . . . . . . . . . . 3 . . . . . . . . . . . . . . . . Samaritan 2 | . . . . . . . . . . . . . . . . . . . . . . . . . 2 . . . . . . . . . Thug 1 | . . . . . . . . 1 . . . . . . . . . . . . . . . . . . . . . . . . . . Butcher 1 | . . . . . . . . . . . . 1 . . . . . . . . . . . . . . . . . . . . . . Guerrilla 1 | . . . . . . . . . . . . 1 . . . . . . . . . . . . . . . . . . . . . . Mutant 2 | . . . . . . . . . . . . . . . . . . 1 1 . . . . . . . . . . . . . . . Best Kill Streak 34 | 3 4 2 4 7 6 7 . 3 7 13 1 8 3 2 10 5 13 4 . . 7 4 . 3 4 4 17 8 3 4 8 9 15 34 Combat Bots Only 27 | . 4 2 3 7 4 7 . 3 5 13 1 7 3 2 9 5 11 4 . . 7 2 . 3 4 4 17 8 3 4 8 8 10 27 Max Kills in Single Turn 7 | 1 1 1 2 3 3 3 . 1 4 3 1 2 1 1 2 4 4 2 1 . 4 1 . 2 1 2 5 3 1 1 3 3 4 7 Gunslinging 1 | . . . 1 . . . . . . . . . . . . . . . . . . . . . . . . . . . . . . . Exploded 7 | . . . . 3 2 3 . 1 3 3 . 2 . . 2 4 4 2 . . 4 1 . . 1 2 5 3 . . 3 2 2 7 Melee 1 | . . . . . . . . . . 1 . 1 . . . . . . . . . . . . . . . . . . 1 1 . . Uniques/NPCs Destroyed . | . . . . . . . . . . . . . . . . . . . . . . . . . . . . . . . . . . . Combat | -11 -10 -10 -8 -8 -8 -8 -7 -7 -7 -7 -6 -6 -6 -6 -6 -6 -5 -5 -5 -5 -4 -4 -4 -4 -4 -4 -4 -3 -3 -3 -3 -2 -2 -1 -------- Run | Yrd Mat Sub Mat Gar Mat Gar Fac Gar Fac Gar Fac Ext Cet Arc Hub Gar Fac Upp Upp Zhi Pro Fac Was Fac Upp Upp War Pro Res Qua Frg Res Tes Acc Hostile Shots Fired 3712 | . 49 69 75 91 40 97 . 187 160 437 25 71 11 20 193 178 213 4 . . 71 58 . 51 18 30 28 20 15 79 409 48 249 716 Missed 995 | . 14 17 25 27 13 24 . 68 54 142 11 26 4 4 60 36 43 . . . 21 21 . 10 5 8 7 8 6 21 97 14 47 162 Hits 2717 | . 35 52 50 64 27 73 . 119 106 295 14 45 7 16 133 142 170 4 . . 50 37 . 41 13 22 21 12 9 58 312 34 202 554 Melee 130 | . . . . 3 . 5 . 1 . . . . . . . 8 3 . . . 4 . . . . . . . . . 33 17 37 19 Projectile 2587 | . 35 52 50 61 27 68 . 118 106 295 14 45 7 16 133 134 167 4 . . 46 37 . 41 13 22 21 12 9 58 279 17 165 535 AOE 26 | . . . 3 . . . . . . . . . . . . 5 . . . . . . . . . . 2 . . . 7 5 . 4 Critical Strikes 179 | . . 3 3 1 . 7 . 3 2 3 . 3 1 . 2 4 10 . . . 4 2 . 3 1 . 2 . . 5 48 4 31 37 Actively Blocked 2 | . . . . . . . . . . . . . . . . . . . . . . . . . . . . . . . 2 . . . Part Disruptions 11 | . . . . . . . . 2 . . . . . . . . . . . . . . . . . . . . . . 5 . 1 3 Damage Taken 45227 | . 402 937 800 887 351 1160 . 1386 1417 2444 100 868 155 403 1458 2421 3091 97 . . 830 594 . 1069 160 269 315 162 116 1053 6426 781 3365 11710 Core 4044 | . 59 107 72 102 48 117 . 176 139 364 12 138 53 122 87 185 132 20 . . 13 . . 45 . 12 8 . . 12 210 71 229 1511 Absorbed by Shields 12154 | . . . . . . . . . . . . 169 24 . . . 485 . . . 203 175 . 171 78 118 329 168 121 591 2188 785 2335 4214 Reduced by Siege Mode 1941 | . . . . . . . . . . . . . . 6 63 135 116 . . . 22 12 . 43 8 13 . . . 69 188 24 143 1099 Redirected to Shielding 95 | . . . . . . . . . . . . . . . . . . . . . . . . . . . . . . . 95 . . . Ignored by Resistances 1499 | . . . . . . . . . . 70 . . . . . . 54 . . . . . . . . . . . . . 1320 . 55 . Regen/Repaired (Parts) 6422 | . 57 . 156 . 187 . . . . . . . . . . . 569 . . . . 692 . 152 . . 317 . . . 1021 265 284 2722 Core Remaining (%) 58 | 100 . 33 . . . 38 . . . 3 . . . . . 29 . . . . 83 . . . . . . 94 . . 75 . 74 . Volleys Fired 2176 | 23 60 73 65 88 22 89 2 88 55 18 9 82 19 13 36 92 95 24 10 16 30 53 16 37 23 21 20 14 30 67 468 23 93 302 Largest 4 | 1 2 2 4 3 3 2 1 2 2 2 1 1 1 2 2 2 2 2 2 2 2 3 1 3 3 3 3 3 3 3 3 3 3 4 Hottest 466 | 20 80 140 136 85 110 160 85 160 160 160 44 48 48 180 180 180 180 70 70 70 82 296 56 360 338 338 345 345 345 360 420 346 373 466 Shots Fired 3511 | 23 120 117 222 174 47 143 2 151 86 25 9 84 19 23 63 153 155 37 16 17 52 91 16 75 35 34 22 25 72 94 582 55 189 483 Gun 1142 | 23 120 88 222 144 39 58 . 6 . 7 . . . 3 12 13 21 22 12 2 36 22 . . . . . . . . 252 . . 40 Cannon 1992 | . . 29 . 8 4 84 2 137 69 8 9 76 19 20 50 128 122 . . . . 64 16 75 30 32 8 21 72 80 290 49 167 323 Launcher 347 | . . . . 22 4 1 . 8 17 10 . 8 . . 1 12 12 4 . . 16 5 . . 5 2 14 4 . 14 40 6 22 120 Special 30 | . . . . . . . . . . . . . . . . . . 11 4 15 . . . . . . . . . . . . . . Kinetic 946 | 23 91 51 203 144 39 58 . 6 . 7 9 76 19 3 12 13 21 22 12 2 36 29 16 14 . . . . . 1 . . . 39 Thermal 1890 | . . 66 19 8 4 84 2 137 69 8 . . . 20 50 128 122 11 4 15 . 57 . 61 30 27 8 21 72 69 260 49 167 322 Explosive 307 | . . . . 18 4 1 . 2 10 10 . 8 . . 1 12 12 4 . . 16 5 . . 5 2 5 4 . . 40 6 22 120 Electromagnetic 359 | . 29 . . 4 . . . 6 7 . . . . . . . . . . . . . . . . 5 . . . 24 282 . . 2 Entropic 9 | . . . . . . . . . . . . . . . . . . . . . . . . . . . 9 . . . . . . . Robot Hit Streak 60 | 5 21 14 7 13 5 13 . 26 8 5 7 7 4 8 12 20 22 6 8 11 9 8 5 18 12 19 7 9 12 10 18 7 55 60 Robot Miss Streak 6 | 4 3 5 5 3 2 3 . 4 2 2 1 3 5 1 2 3 3 2 . 2 3 3 1 2 1 1 1 1 1 3 4 6 1 2 Penetration Max 5 | . . . . . . . . . . . . . 1 . . . . 1 . . . . . 1 . . . . . . 1 . 1 5 Secondary Targets 9 | . 2 . 2 1 1 . . . . . . . . . 1 . . . . . 1 1 . . . . . . . . . . . . Max Gunslinging Chain 1 | . 1 . 1 1 1 . . . . . . . . . 1 . . . . . 1 1 . . . . . . . . . . . . Shots Hit Robots 1855 | 13 79 70 129 79 27 71 . 80 42 23 4 43 7 38 39 82 103 18 4 10 30 47 11 37 15 18 9 8 42 31 195 27 130 294 Core Hits 1730 | 5 27 19 52 47 16 33 . 32 49 31 3 39 5 14 25 52 74 16 4 6 41 32 2 13 16 15 64 22 19 13 186 41 150 567 Critical Kills 49 | 1 . 1 . . . . . 1 1 . . . 4 . . 1 1 2 . . . 6 1 6 . 2 . 1 . 1 10 1 1 8 Critical Parts Destroyed 22 | . . . 1 . . . . . . . . . . . . . 2 1 . . 4 1 3 3 . . . . . . . . 3 4 Critical Strikes 102 | 1 . 4 1 . . . . 1 1 2 2 4 5 . . 1 4 3 1 . 4 7 11 10 . 2 . 1 . 1 17 2 4 13 Meltdown 28 | . . . . . . . . . 1 . . . . . . 1 1 . . . . 2 . 2 . 2 . 1 . 1 10 1 1 5 Destroy 57 | 1 . 4 1 . . . . 1 . . . . 5 . . . 3 3 . . 4 5 11 8 . . . . . . . . 3 8 Blast 4 | . . . . . . . . . . . 2 2 . . . . . . . . . . . . . . . . . . . . . . Sever 4 | . . . . . . . . . . 1 . 2 . . . . . . 1 . . . . . . . . . . . . . . . Impale 9 | . . . . . . . . . . 1 . . . . . . . . . . . . . . . . . . . . 7 1 . . Melee Attacks 188 | . . 71 . 2 16 . . 2 . 11 . 23 . 24 . . . . . . . . . . . . . . . 3 33 3 . . Kinetic 3 | . . . . . . . . . . . . . . . . . . . . . . . . . . . . . . 3 . . . . Impact . | . . . . . . . . . . . . . . . . . . . . . . . . . . . . . . . . . . . Slashing 53 | . . . . . . . . 2 . 4 . 23 . 24 . . . . . . . . . . . . . . . . . . . . Piercing 132 | . . 71 . 2 16 . . . . 7 . . . . . . . . . . . . . . . . . . . . 33 3 . . Sneak Attacks 29 | . . 3 . 1 2 . . . . . . 5 . 15 . . . . . . . . . . . . . . . . 2 1 . . Combat Hostiles 3 | . . . . 1 . . . . . . . 2 . . . . . . . . . . . . . . . . . . . . . . Follow-up Attacks 1 | . . . . . . . . . . 1 . . . . . . . . . . . . . . . . . . . . . . . . Damage Inflicted 174225 | 159 992 1551 2281 2628 828 1920 . 2696 3010 1975 116 3074 219 2218 2000 4406 6931 885 66 195 2606 2235 300 1583 1591 904 8536 1618 1757 1767 18632 2946 14916 76684 Guns 10255 | 156 894 968 2198 1267 392 631 . 91 . 96 . . . 59 235 264 463 300 . . 630 323 . . . . . . . . 216 . . 1072 Cannons 47034 | . . 490 . . 60 1173 . 2098 1177 205 116 1145 219 601 1309 2289 2834 . . . . 1279 300 1554 440 666 178 289 1757 1155 7555 1358 6244 10543 Explosions 112291 | . 22 . 44 1310 254 116 . 389 1802 1457 . 1166 . . 436 1853 3586 469 . . 1976 621 . . 1137 238 8358 1329 . 497 10056 1437 8672 65066 Melee 3970 | . . 93 . 51 122 . . 118 . 217 . 763 . 1558 . . . . . . . . . . . . . . . 94 803 151 . . Ramming 298 | 3 76 . 39 . . . . . 31 . . . . . 20 . 48 . . . . 12 . 29 14 . . . . 21 2 . . 3 Kinetic 11494 | 156 645 714 1990 1267 392 631 . 91 . 96 116 1145 219 59 235 264 463 300 . . 630 435 300 203 . . . . . 94 . . . 1049 Thermal 45982 | . 22 744 208 . 60 1173 . 2098 1177 205 . . . 601 1550 2368 3384 116 66 195 . 1167 . 1351 440 548 470 586 1757 804 6772 1358 6244 10518 Explosive 103805 | . . . . 1310 254 116 . 165 1373 1457 . 1166 . . 195 1774 3036 469 . . 1976 621 . . 1137 238 2255 1032 . . 10056 1437 8672 65066 Electromagnetic 2959 | . 249 . 44 . . . . 224 429 . . . . . . . . . . . . . . . . 118 . . . 848 999 . . 48 Impact . | . . . . . . . . . . . . . . . . . . . . . . . . . . . . . . . . . . . Slashing 2531 | . . . . . . . . 118 . 92 . 763 . 1558 . . . . . . . . . . . . . . . . . . . . Piercing 1345 | . . 93 . 51 122 . . . . 125 . . . . . . . . . . . . . . . . . . . . 803 151 . . Entropic 5811 | . . . . . . . . . . . . . . . . . . . . . . . . . . . 5811 . . . . . . . Highest Corruption 55 | . . . . 3 3 4 . 10 18 21 2 2 6 7 5 11 15 15 8 8 12 1 1 4 4 4 4 . 3 16 45 . 12 55 Average Corruption 8 | . . . . 2 3 3 . 6 15 19 2 2 2 2 3 9 6 10 8 8 9 1 1 1 4 4 4 . 3 4 24 . 3 7 Corruption Purged 26 | . . . . . . . . . . . . . . 19 . . . 7 . . . . . . . . . . . . . . . . Corruption Blocked . | . . . . . . . . . . . . . . . . . . . . . . . . . . . . . . . . . . . Effects 918 | . . . . 5 21 36 . 56 84 11 . 15 7 14 11 74 41 39 35 10 45 1 4 13 20 27 2 . 3 47 228 . 11 58 Message Errors 216 | . . . . . 6 10 . 16 13 2 . 2 1 4 5 21 7 8 11 1 13 . 1 4 7 3 . . . 7 60 . 4 10 Matter Fused 207 | . . . . 3 2 8 . 12 22 2 . 3 3 2 4 16 8 10 8 4 7 . 1 3 3 8 . . 2 14 46 . 1 15 Heat Flow Errors 100 | . . . . . 3 3 . 6 11 2 . 2 . 1 . 9 4 5 4 2 4 . . . 3 1 . . . 8 24 . 1 7 Energy Discharges 100 | . . . . 2 4 4 . 7 9 2 . 3 . . . 8 5 3 6 1 9 . 1 . 2 5 . . 1 2 20 . . 6 Parts Rejected 9 | . . . . . 1 . . . . 1 . . 1 . 1 1 1 . . . . . . . . . . . . . 2 . . 1 Parts Fused 12 | . . . . . . . . . 2 . . . . 1 . . 2 1 . . . . . 1 . . . . . 2 2 . . 1 Data Loss (minor) 115 | . . . . . 1 6 . 10 12 . . 2 2 3 . 11 4 4 3 . 4 1 1 3 2 8 1 . . 5 23 . 2 7 Data Loss (major) 43 | . . . . . 2 1 . 2 7 . . 1 . 2 . 1 1 3 1 2 4 . . . 1 1 1 . . 2 9 . 2 . Misfires 41 | . . . . . 2 3 . . 3 . . 2 . 1 . 2 1 4 . . 4 . . 1 2 1 . . . 4 11 . . . Alerts 20 | . . . . . . . . 1 2 . . . . . . 2 2 1 2 . . . . 1 . . . . . 2 3 . . 4 Misdirections 7 | . . . . . . . . . 2 1 . . . . . 1 . . . . . . . . . . . . . . 2 . . 1 Weapon Failures 48 | . . . . . . 1 . 2 1 1 . . . . 1 2 6 . . . . . . . . . . . . 1 26 . 1 6 Overload Shots . | . . . . . . . . . . . . . . . . . . . . . . . . . . . . . . . . . . . Overflow Damage 6222 | . . . . 58 18 27 . 72 90 75 . 101 . 349 16 48 378 14 . 14 137 98 . 83 51 54 88 26 20 50 786 59 718 2792 Projectiles 2272 | . . . . . . 27 . 72 32 . . . . . 10 19 115 . . 14 . 98 . 83 . 47 . 25 20 50 433 30 440 757 Explosions 3354 | . . . . 57 . . . . 57 75 . . . . 6 29 237 14 . . 137 . . . 51 7 88 1 . . 253 29 278 2035 Melee 596 | . . . . 1 18 . . . 1 . . 101 . 349 . . 26 . . . . . . . . . . . . . 100 . . . Knockbacks 2 | . . . . . . . . . . . . . . . . . 1 . . . . . . 1 . . . . . . . . . . Impact 1 | . . . . . . . . . . . . . . . . . 1 . . . . . . . . . . . . . . . . . Kinetic 1 | . . . . . . . . . . . . . . . . . . . . . . . . 1 . . . . . . . . . . Secondary . | . . . . . . . . . . . . . . . . . . . . . . . . . . . . . . . . . . . Self-Inflicted Damage 1382 | . . . . . . . . 21 55 76 . 31 . . 47 128 121 21 . . . 60 . . . 13 . 66 . . 360 25 43 315 Shots 38 | . . . . . . . . 1 2 2 . 1 . . 1 3 3 1 . . . 1 . . . 1 . 1 . . 8 1 3 9 Rammed 27 | 1 9 . 5 . . . . . 2 . . . . . 1 . 2 . . . . 1 . 2 1 . . . . 1 1 . . 1 Targets Rammed 29 | 1 10 . 5 . . . . . 2 . . . . . 1 . 2 . . . . 1 . 2 1 . . . . 2 1 . . 1 Kicked . | . . . . . . . . . . . . . . . . . . . . . . . . . . . . . . . . . . . Crushed 2 | . 1 . . . . . . . . . . . . . . . . . . . . . . . . . . . . 1 . . . . Highest Temperature 518 | . 120 229 249 112 201 233 12 253 518 240 24 241 2 351 343 343 390 185 244 176 266 387 . 342 345 316 231 342 467 476 240 180 206 289 Average Temperature 99 | . 36 54 64 28 74 60 9 44 120 134 15 38 2 153 165 87 125 49 95 73 68 98 . 97 102 100 98 94 124 66 69 132 148 130 Received Heat Transfer 6053 | . 198 156 297 126 81 333 . 348 459 594 24 305 9 72 513 213 555 36 . . 51 86 . 93 36 42 40 5 4 26 673 32 296 350 Thermoelectric Energy+ 10321 | . . . . . . . . . . . . . . . . . . . . . . . . . . . . . . . . 693 4017 5611 Effects 50 | . . 2 . . . . . . 5 1 . . . . 8 . 8 . . . . 2 . 2 1 2 1 . . . . . 5 13 Shutdowns 4 | . . . . . . . . . 1 . . . . . . . 2 . . . . 1 . . . . . . . . . . . . Energy Bleed 15 | . . . . . . . . . 1 1 . . . . 2 . . . . . . 1 . . 1 . . . . . . . 1 8 Interference 26 | . . 2 . . . . . . . . . . . . 4 . 6 . . . . . . 2 . 2 1 . . . . . 4 5 Matter Decay 3 | . . . . . . . . . 1 . . . . . 2 . . . . . . . . . . . . . . . . . . . Short Circuit 1 | . . . . . . . . . 1 . . . . . . . . . . . . . . . . . . . . . . . . . Damage (major) 1 | . . . . . . . . . 1 . . . . . . . . . . . . . . . . . . . . . . . . . Siege Activations 83 | . . . . . . . . . . . . . . 1 2 13 4 . . . 4 5 2 4 2 2 . . 1 6 19 2 2 14 Total Turns 2672 | . . . . . . . . . . . . . . 10 38 373 109 . . . 40 46 33 47 29 38 . . 10 111 518 20 72 1178 Longest Duration 262 | . . . . . . . . . . . . . . 10 25 75 45 . . . 28 16 29 19 20 19 . . 10 28 262 13 58 204 Martial Activations . | . . . . . . . . . . . . . . . . . . . . . . . . . . . . . . . . . . . Shielding Activations . | . . . . . . . . . . . . . . . . . . . . . . . . . . . . . . . . . . . Robots Disrupted 4 | . . . . . . . . . . . . . . . . 1 1 . . . . . . . 1 . . . . . 1 . . . Combat Hostiles 4 | . . . . . . . . . . . . . . . . 1 1 . . . . . . . 1 . . . . . 1 . . . Robots Corrupted 18 | . . . . . . . . 1 3 . . . . . . . 1 . . . . . . . . . . . . 7 6 . . . Combat Hostiles 16 | . . . . . . . . 1 2 . . . . . . . . . . . . . . . . . . . . 7 6 . . . Parts Fried 31 | . . . . . . . . 1 4 . . . . . . . 4 . . . . . . . . . . . . 12 10 . . . Impact Corruptions 2 | . . . . . . . . . 1 . . . . . . . 1 . . . . . . . . . . . . . . . . . Robots Melted 30 | . . . . . . . . 1 1 . . . . . . 1 2 . . . . 2 . 2 . 2 . 1 . 1 10 1 1 5 Combat Hostiles 28 | . . . . . . . . 1 1 . . . . . . 1 2 . . . . 1 . 2 . 2 . 1 . 1 9 1 1 5 Parts Melted 82 | . . 1 . . 1 1 . 6 1 . . . . . . 1 6 . . . . 5 . 6 2 3 . 3 . 2 16 1 10 17 Heat Transferred 35702 | . 50 966 250 . 74 1443 . 2664 1443 259 . . . . 300 1175 2175 259 148 407 . 962 . 1147 446 494 448 659 1600 629 5036 1184 4477 7007 Parts Sabotaged 4 | . . . . . . . . . . . . . . . . . 2 . . . . . . . . . . . . . . . 2 . Parts Stolen . | . . . . . . . . . . . . . . . . . . . . . . . . . . . . . . . . . . . Parts Stripped 18 | . . . . . . . . . . . . . . . . . . . . . . . . . . . . . . 18 . . . . Power Chain Reactions 9 | . 1 . . . . . . . . . . . . . 3 1 1 . . . . . . . . . 2 . . 1 . . . . Alert | -11 -10 -10 -8 -8 -8 -8 -7 -7 -7 -7 -6 -6 -6 -6 -6 -6 -5 -5 -5 -5 -4 -4 -4 -4 -4 -4 -4 -3 -3 -3 -3 -2 -2 -1 ------- Run | Yrd Mat Sub Mat Gar Mat Gar Fac Gar Fac Gar Fac Ext Cet Arc Hub Gar Fac Upp Upp Zhi Pro Fac Was Fac Upp Upp War Pro Res Qua Frg Res Tes Acc Maximum Alert Level 5 | . . . 1 5 3 5 3 5 3 3 2 3 2 1 1 4 4 . . . . 1 . 1 . . . . . 1 5 4 5 5 Low Security (%) 32 | 100 100 . 58 17 . . . . . . . 47 . 93 59 2 . . . . . 75 100 82 . . . . 100 98 21 . . . Level 1 8 | . . . 41 5 . . . . . . 95 32 8 6 40 15 . . . . . 24 . 17 . . . . . 1 5 . . . Level 2 14 | . . . . 23 49 11 . 11 17 37 4 7 92 . . 15 30 . . . . . . . . . . . . . 31 . 58 . Level 3 20 | . . . . 32 50 28 100 31 82 62 . 12 . . . 24 30 . . . . . . . . . . . . . 12 78 18 2 Level 4 13 | . . . . 18 . 26 . 26 . . . . . . . 42 38 . . . . . . . . . . . . . 13 21 14 33 Level 5 5 | . . . . 2 . 32 . 30 . . . . . . . . . . . . . . . . . . . . . . 13 . 8 . High Security 4 | . . . . . . . . . . . . . . . . . . . . . . . . . . . . . . . 2 . . 63 Max Security . | . . . . . . . . . . . . . . . . . . . . . . . . . . . . . . . . . . . Peak Influence 6807 | 10 92 . 300 1674 816 1817 953 2085 1094 1071 595 861 599 221 306 1496 1394 . . . . 346 114 232 . . . . 129 204 2012 1225 1876 6807 Initial 1120 | . . . 61 39 815 523 953 591 1094 631 562 163 477 155 . 173 785 . . . . 39 114 . . . . . 129 2 90 1120 557 1112 Average 799 | 2 12 . 177 740 717 1205 898 1332 869 817 300 282 484 79 130 924 886 . . . . 101 22 56 . . . . 45 96 778 1016 857 3391 Influence Increases 29096 | 25 318 267 869 1705 363 1334 2 1554 730 640 211 1590 324 202 445 1403 1270 135 . 5 420 660 . 455 130 210 836 414 295 668 2903 431 1905 6377 Destroy 0b10 Robot/C 15580 | . 200 140 500 540 160 500 . 680 420 360 20 800 160 80 260 600 640 80 . . 380 240 . 220 120 180 540 300 140 240 1540 300 1000 4240 Destroy 0b10 Robot/NC 875 | 25 30 . 70 10 15 . . 5 15 . 5 30 10 45 5 5 25 . . 5 . 35 . 5 . . 20 . 25 10 70 10 55 345 Destroy Leader 2144 | . 54 20 154 20 52 30 . 50 120 40 10 84 . . 70 50 130 10 . . 40 60 . 60 10 30 . 20 30 82 162 40 154 562 Allied During Kill 983 | . . 2 32 2 . 5 . 90 . 1 . 267 144 60 . . . . . . . . . . . . 276 94 10 . . . . . Successful Hack 623 | . 11 . 19 44 29 14 . 14 7 . 53 15 . . 6 14 38 . . . . 110 . 38 . . . . 37 105 69 . . . Disable Machine 1305 | . . . 15 15 15 45 . 45 105 15 . 60 . 15 30 75 105 . . . . 60 . 75 . . . . 15 135 240 . 105 135 Anti-Garrison Action 2600 | . . . . 850 . 600 . 500 . 50 . . . . . 400 . . . . . . . . . . . . . . 200 . . . Destroy Structure 3816 | . 8 . 64 119 47 95 2 110 48 84 3 124 10 2 59 169 332 . . . . 140 . 42 . . . . 38 96 502 81 546 1095 Partial Spotted 135 | . 15 . . . 15 . . . 15 . 15 60 . . . . . . . . . . . . . . . . . . 15 . . . Lose Combat Pursuer 1035 | . . 105 15 105 30 45 . 60 . 90 105 150 . . 15 90 . 45 . . . 15 . 15 . . . . . . 105 . 45 . Influence Decreases 22299 | 25 318 149 926 92 1231 323 974 314 1913 471 949 1070 788 591 197 155 1378 989 534 5 356 397 327 244 341 184 121 963 483 510 1073 1432 1042 1434 Entered New Map 9562 | . . . 57 22 859 283 864 254 991 271 509 170 376 234 . 75 711 515 102 . . 25 213 . 79 . 26 741 63 2 72 872 434 742 Time Decay 9698 | 25 308 70 589 . 362 . 110 . 592 . 130 490 222 337 187 . 577 474 432 5 336 362 114 234 262 184 95 202 400 508 751 550 398 392 Lost Part 1099 | . 10 19 30 10 10 20 . 20 30 160 . 20 10 . 10 80 90 . . . 20 10 . 10 . . . . . . 170 10 60 300 Lost Ally 810 | . . 60 100 60 . 20 . 40 . 40 10 240 180 20 . . . . . . . . . . . . . 20 20 . . . . . Purge Threat 1130 | . . . 150 . . . . . 300 . 300 150 . . . . . . . . . . . . . . . . . . 80 . 150 . Squads Dispatched 147 | . 4 . 4 . 1 . . . 8 . 1 3 . . 3 . 11 . . . . 4 . 5 . . . . 7 2 15 . 13 66 Investigation 14 | . 1 . . . 1 . . . 2 . 1 . . . . . 3 . . . . . . 1 . . . . 3 1 1 . . . Extermination 27 | . . . . . . . . . 4 . . . . . 1 . 4 . . . . 2 . 3 . . . . . 1 7 . 3 2 Reinforcement 17 | . 3 . . . . . . . 1 . . 2 . . 2 . 1 . . . . 2 . 1 . . . . 4 . . . 1 . Assault 82 | . . . . . . . . . 1 . . 1 . . . . 3 . . . . . . . . . . . . . 7 . 6 64 Garrison 7 | . . . 4 . . . . . . . . . . . . . . . . . . . . . . . . . . . . . 3 . Intercept . | . . . . . . . . . . . . . . . . . . . . . . . . . . . . . . . . . . . Searches Triggered . | . . . . . . . . . . . . . . . . . . . . . . . . . . . . . . . . . . . Unchained Authorized 1 | . . . . . . . . . . . . . . . . . . . . . . . . . . . . . . . . . 1 . Construction Impeded 4 | . . . . . . . . . 1 . . 1 . . . . 1 . . . . 1 . . . . . . . . . . . . Haulers Reinforced 3 | . . . . . . . . . . . . . . . . . . . . . . 1 . . . . . . 2 . . . . . Active Scanning Responses . | . . . . . . . . . . . . . . . . . . . . . . . . . . . . . . . . . . . Cargo Convoy Interrupts . | . . . . . . . . . . . . . . . . . . . . . . . . . . . . . . . . . . . Stealth | -11 -10 -10 -8 -8 -8 -8 -7 -7 -7 -7 -6 -6 -6 -6 -6 -6 -5 -5 -5 -5 -4 -4 -4 -4 -4 -4 -4 -3 -3 -3 -3 -2 -2 -1 --------- Run | Yrd Mat Sub Mat Gar Mat Gar Fac Gar Fac Gar Fac Ext Cet Arc Hub Gar Fac Upp Upp Zhi Pro Fac Was Fac Upp Upp War Pro Res Qua Frg Res Tes Acc Distress Signals 48 | . 5 . 4 1 1 . . . . . . 2 2 . 1 . 2 . . . . 1 . 1 . . 1 . 8 . . 15 4 . Communications Jammed 12 | . . . . . . . . . . . . . . . . . . . . . . 2 . 2 . . . . . . 8 . . . Distress Signals 11 | . . . . . . . . . . . . . . . . . . . . . . 2 . 2 . . . . . . 7 . . . Times Spotted 1037 | . 20 22 35 31 12 25 . 36 30 30 8 43 10 17 18 34 47 4 . . 13 20 . 14 6 9 43 10 14 12 97 29 72 276 Peak Tracking Total 16 | . 2 4 4 4 4 5 . 4 5 11 6 7 5 2 8 5 9 4 . . 5 5 . 3 3 4 13 8 4 3 5 10 12 16 Tactical Retreats 38 | . . 1 1 7 2 1 . 3 . 2 2 5 . . 1 2 . 1 . . . 1 . 1 . . . . . . 6 . 2 . Traps | -11 -10 -10 -8 -8 -8 -8 -7 -7 -7 -7 -6 -6 -6 -6 -6 -6 -5 -5 -5 -5 -4 -4 -4 -4 -4 -4 -4 -3 -3 -3 -3 -2 -2 -1 ------- Run | Yrd Mat Sub Mat Gar Mat Gar Fac Gar Fac Gar Fac Ext Cet Arc Hub Gar Fac Upp Upp Zhi Pro Fac Was Fac Upp Upp War Pro Res Qua Frg Res Tes Acc Traps Triggered 50 | . 1 . . 9 . 6 . 6 . . . 3 . . 2 3 3 . . . . 1 . 2 . . . . . . 10 . 2 2 Indirectly 1 | . . . . 1 . . . . . . . . . . . . . . . . . . . . . . . . . . . . . . Trap Hack Attempts . | . . . . . . . . . . . . . . . . . . . . . . . . . . . . . . . . . . . Triggered . | . . . . . . . . . . . . . . . . . . . . . . . . . . . . . . . . . . . Disarmed . | . . . . . . . . . . . . . . . . . . . . . . . . . . . . . . . . . . . Reprogrammed . | . . . . . . . . . . . . . . . . . . . . . . . . . . . . . . . . . . . Reused . | . . . . . . . . . . . . . . . . . . . . . . . . . . . . . . . . . . . Traps Extracted . | . . . . . . . . . . . . . . . . . . . . . . . . . . . . . . . . . . . Installed . | . . . . . . . . . . . . . . . . . . . . . . . . . . . . . . . . . . . Triggered . | . . . . . . . . . . . . . . . . . . . . . . . . . . . . . . . . . . . Machines | -11 -10 -10 -8 -8 -8 -8 -7 -7 -7 -7 -6 -6 -6 -6 -6 -6 -5 -5 -5 -5 -4 -4 -4 -4 -4 -4 -4 -3 -3 -3 -3 -2 -2 -1 ---------- Run | Yrd Mat Sub Mat Gar Mat Gar Fac Gar Fac Gar Fac Ext Cet Arc Hub Gar Fac Upp Upp Zhi Pro Fac Was Fac Upp Upp War Pro Res Qua Frg Res Tes Acc Machines Disabled 143 | . 1 2 1 10 1 14 . 12 7 2 . 6 . 1 2 11 7 . . 1 . 4 . 5 . . 3 2 1 9 25 . 7 9 Max in Single Turn 3 | . 1 1 1 2 1 2 . 2 2 1 . 1 . 1 1 2 2 . . 1 . 1 . 2 . . 1 2 1 1 2 . 3 1 Garrison Access 6 | . . . . . . . . . . . 1 . . . . . . . . . . 2 . . . . . . . . 1 2 . . Garrison Relay 22 | . . . . 6 . 6 . 5 . 1 . . . . . 4 . . . . . . . . . . . . . . . . . . Phase Generator 4 | . . . . 1 . 1 . 1 . . . . . . . 1 . . . . . . . . . . . . . . . . . . Network Hub 1 | . . . . . . . . . . . . . . . 1 . . . . . . . . . . . . . . . . . . . Energy Cycler 1 | . . . . . . . . . . . . . . . . . . . . . . . . . . . . . . . . . . 1 Machines Repaired . | . . . . . . . . . . . . . . . . . . . . . . . . . . . . . . . . . . . Machines Dismantled 3 | . . . . . . . . 1 . . . 1 . . 1 . . . . . . . . . . . . . . . . . . . Machines Sabotaged . | . . . . . . . . . . . . . . . . . . . . . . . . . . . . . . . . . . . Overloaded Fab Kills . | . . . . . . . . . . . . . . . . . . . . . . . . . . . . . . . . . . . Hacking | -11 -10 -10 -8 -8 -8 -8 -7 -7 -7 -7 -6 -6 -6 -6 -6 -6 -5 -5 -5 -5 -4 -4 -4 -4 -4 -4 -4 -3 -3 -3 -3 -2 -2 -1 --------- Run | Yrd Mat Sub Mat Gar Mat Gar Fac Gar Fac Gar Fac Ext Cet Arc Hub Gar Fac Upp Upp Zhi Pro Fac Was Fac Upp Upp War Pro Res Qua Frg Res Tes Acc Machines Accessed 123 | . 6 1 8 4 8 3 1 1 12 . 10 12 . . 2 1 6 . . 4 . 10 . 5 1 . 4 . 4 10 6 1 3 . Terminals 75 | . 5 . 6 4 6 3 . 1 7 . 7 10 . . 1 1 2 . . . . 3 . 3 . . . . 2 7 5 . 2 . Fabricators 5 | . . . . . . . . . 2 . 1 . . . . . . . . . . 1 . 1 . . . . . . . . . . Repair Stations 11 | . 1 . 1 . 1 . . . 1 . . . . . . . 2 . . . . 2 . 1 . . . . . 2 . . . . Recycling Units 6 | . . . . . . . . . . . . 2 . . . . 1 . . . . 2 . . . . . . . . . 1 . . Scanalyzers 7 | . . . . . . . . . 1 . 1 . . . . . 1 . . . . . . . . . . . 2 1 . . 1 . Garrison Access 9 | . . . 1 . 1 . 1 . 1 . 1 . . . 1 . . . . . . 2 . . . . . . . . 1 . . . Total Hacks 323 | . 18 3 23 14 21 6 1 2 22 . 21 27 . . 2 3 19 . . 17 . 33 . 13 1 . 9 . 11 26 20 2 9 . Successful 158 | . 12 3 15 3 10 2 1 1 7 . 12 13 . . 2 1 6 . . 17 . 13 . 6 1 . 9 . 6 6 7 . 5 . Failed 165 | . 6 . 8 11 11 4 . 1 15 . 9 14 . . . 2 13 . . . . 20 . 7 . . . . 5 20 13 2 4 . Catastrophic 38 | . 2 . 1 . . 3 . . 5 . 2 4 . . . 1 4 . . . . 3 . 2 . . . . . 4 4 2 1 . Database Lockouts . | . . . . . . . . . . . . . . . . . . . . . . . . . . . . . . . . . . . Manual 121 | . 13 . 12 5 15 2 . 1 5 . 11 16 1 . 1 1 4 . . . . 10 . 3 . . . . . 7 12 . 2 . Terminals 195 | . 14 . 15 14 17 6 . 2 13 . 17 22 . . 1 3 5 . . . . 14 . 9 . . . . 6 17 16 . 4 . Fabricators 7 | . . . . . . . . . 4 . 1 . . . . . . . . . . 1 . 1 . . . . . . . . . . Repair Stations 37 | . 4 . 5 . 2 . . . 1 . . . . . . . 6 . . . . 9 . 3 . . . . . 7 . . . . Recycling Units 14 | . . . . . . . . . . . . 5 . . . . 1 . . . . 6 . . . . . . . . . 2 . . Scanalyzers 24 | . . . . . . . . . 3 . 2 . . . . . 7 . . . . . . . . . . . 5 2 . . 5 . Garrison Access 16 | . . . 3 . 2 . 1 . 1 . 1 . . . 1 . . . . . . 3 . . . . . . . . 4 . . . Terminal Hacks 78 | . 2 3 2 2 4 2 . 1 2 . 6 5 . . 1 1 1 . . 17 . 4 . 3 1 . 9 . 2 4 5 . 1 . Record 16 | . . 3 . . . . . . . . . . . . . . . . . 5 . . . . . . 8 . . . . . . . Part Schematic 5 | . . . . . . . . . . . 1 . . . . . . . . 4 . . . . . . . . . . . . . . Robot Analysis 4 | . . . . . . . . . . . . . . . . . . . . 4 . . . . . . . . . . . . . . Prototype ID Bank 4 | . . . . . . . . . . . . . . . . . . . . 4 . . . . . . . . . . . . . . Open Door 9 | . . . . . . 1 . . . . 1 4 . . . . . . . . . . . . 1 . 1 . 1 . . . . . Level Access Points 1 | . . . . . . . . . . . . . . . . . . . . . . . . . . . . . . . 1 . . . Branch Access Points 5 | . . . . . . . . . . . 1 . . . . . 1 . . . . 1 . 1 . . . . 1 . . . . . Emergency Access Points 3 | . . . . . . 1 . 1 . . . . . . . 1 . . . . . . . . . . . . . . . . . . Machine Index 1 | . . . . . . . . . . . . . . . . . . . . . . . . . . . . . . 1 . . . . Terminal Index 2 | . 1 . . . . . . . . . 1 . . . . . . . . . . . . . . . . . . . . . . . Garrison Index 1 | . . . . . 1 . . . . . . . . . . . . . . . . . . . . . . . . . . . . . Unreport Threat 9 | . . . 1 . . . . . 2 . 2 1 . . . . . . . . . . . . . . . . . . 2 . 1 . Locate Traps 1 | . . . . . . . . . . . . . . . . . . . . . . . . . . . . . . . 1 . . . Maintenance Status 1 | . . . . . . . . . . . . . . . . . . . . . . 1 . . . . . . . . . . . . Patrol Status 1 | . . . . . 1 . . . . . . . . . . . . . . . . . . . . . . . . . . . . . Transport Status 1 | . . . . . . . . . . . . . . . . . . . . . . 1 . . . . . . . . . . . . Recall Investigation 1 | . . . . . . . . . . . . . . . . . . . . . . . . 1 . . . . . . . . . . Recall Extermination 1 | . . . . . . . . . . . . . . . . . . . . . . . . 1 . . . . . . . . . . Registered Prototypes 1 | . . . . . . . . . . . . . . . . . . . . . . 1 . . . . . . . . . . . . Zone Layout 9 | . 1 . 1 . 2 . . . . . . . . . 1 . . . . . . . . . . . . . . 3 1 . . . Garrison Registry 1 | . . . . 1 . . . . . . . . . . . . . . . . . . . . . . . . . . . . . . Security Stations 1 | . . . . 1 . . . . . . . . . . . . . . . . . . . . . . . . . . . . . . Fabricator Hacks 3 | . . . . . . . . . 1 . . . . . . . . . . . . 1 . 1 . . . . . . . . . . Network Status 1 | . . . . . . . . . 1 . . . . . . . . . . . . . . . . . . . . . . . . . Build 2 | . . . . . . . . . . . . . . . . . . . . . . 1 . 1 . . . . . . . . . . Repair Station Hacks 18 | . 3 . 5 . 2 . . . . . . . . . . . . . . . . 4 . 2 . . . . . 2 . . . . Scan Component 11 | . 2 . 3 . 1 . . . . . . . . . . . . . . . . 2 . 1 . . . . . 2 . . . . Repair 7 | . 1 . 2 . 1 . . . . . . . . . . . . . . . . 2 . 1 . . . . . . . . . . Recycling Unit Hacks 3 | . . . . . . . . . . . . 2 . . . . . . . . . 1 . . . . . . . . . . . . Retrieve Components 3 | . . . . . . . . . . . . 2 . . . . . . . . . 1 . . . . . . . . . . . . Scanalyzer 12 | . . . . . . . . . 1 . 1 . . . . . 2 . . . . . . . . . . . 4 . . . 4 . Insert Component 3 | . . . . . . . . . . . . . . . . . . . . . . . . . . . . . 2 . . . 1 . Retrieve Study 9 | . . . . . . . . . 1 . 1 . . . . . 2 . . . . . . . . . . . 2 . . . 3 . Garrison Access Hacks 8 | . . . 1 . 1 . 1 . 1 . 1 . . . 1 . . . . . . 2 . . . . . . . . . . . . Unlock Access 5 | . . . 1 . 1 . 1 . 1 . . . . . 1 . . . . . . . . . . . . . . . . . . . Seal Access 3 | . . . . . . . . . . . 1 . . . . . . . . . . 2 . . . . . . . . . . . . Unauthorized Hacks 36 | . 7 . 7 1 3 . . . 2 . 4 6 . . . . 3 . . . . 1 . . . . . . . . 2 . . . Terminals 31 | . 7 . 7 1 3 . . . 1 . 3 6 . . . . 1 . . . . 1 . . . . . . . . 1 . . . Assimilate 1 | . . . . . . . . . . . 1 . . . . . . . . . . . . . . . . . . . . . . . Botnet 15 | . 3 . 2 1 2 . . . 1 . 2 1 . . . . 1 . . . . 1 . . . . . . . . 1 . . . Disrupt 1 | . . . . . 1 . . . . . . . . . . . . . . . . . . . . . . . . . . . . . Skim 14 | . 4 . 5 . . . . . . . . 5 . . . . . . . . . . . . . . . . . . . . . . Fabricators 2 | . . . . . . . . . 1 . 1 . . . . . . . . . . . . . . . . . . . . . . . Liberate 1 | . . . . . . . . . 1 . . . . . . . . . . . . . . . . . . . . . . . . . Recompile 1 | . . . . . . . . . . . 1 . . . . . . . . . . . . . . . . . . . . . . . Repair Stations 2 | . . . . . . . . . . . . . . . . . 2 . . . . . . . . . . . . . . . . . Patch 2 | . . . . . . . . . . . . . . . . . 2 . . . . . . . . . . . . . . . . . Recycling Units . | . . . . . . . . . . . . . . . . . . . . . . . . . . . . . . . . . . . Scanalyzers . | . . . . . . . . . . . . . . . . . . . . . . . . . . . . . . . . . . . Garrison Access 1 | . . . . . . . . . . . . . . . . . . . . . . . . . . . . . . . 1 . . . Jam 1 | . . . . . . . . . . . . . . . . . . . . . . . . . . . . . . . 1 . . . Data Cores Recovered . | . . . . . . . . . . . . . . . . . . . . . . . . . . . . . . . . . . . Used . | . . . . . . . . . . . . . . . . . . . . . . . . . . . . . . . . . . . Hacking Detections 96 | . 6 . 6 4 7 3 . 1 10 . 7 11 1 . . 1 6 . . . . 7 . 4 . . . . 3 10 6 1 2 . Full Trace Events 7 | . . . . . 1 . . . 2 . . . . . . 1 1 . . . . . . 1 . . . . . 1 . . . . Feedback Events 1 | . . . . . . . . . . . . . . . . . . . . . . . . . . . . . . 1 . . . . Corruption 1 | . . . . . . . . . . . . . . . . . . . . . . . . . . . . . . 1 . . . . Feedback Blocked . | . . . . . . . . . . . . . . . . . . . . . . . . . . . . . . . . . . . Robot Schematics Acquired 1 | . . . . . . . . . . . . . . . . . . . . . . . . . . . . . . . 1 . . . Robots Built . | . . . . . . . . . . . . . . . . . . . . . . . . . . . . . . . . . . . Authchips . | . . . . . . . . . . . . . . . . . . . . . . . . . . . . . . . . . . . Time 187 | . . . . . . . . . . . . . . . . . . . . . . . . 187 . . . . . . . . . . Total Robot Build Rating . | . . . . . . . . . . . . . . . . . . . . . . . . . . . . . . . . . . . Part Schematics Acquired 10 | . . . . . . . . . . . 1 . . . . . . . . 4 . . . . . . . . . . 5 . . . Parts Built 2 | . . . . . . . . . . . . . . . . . . . . . . 2 . . . . . . . . . . . . Authchips . | . . . . . . . . . . . . . . . . . . . . . . . . . . . . . . . . . . . Time 69 | . . . . . . . . . . . . . . . . . . . . . . 69 . . . . . . . . . . . . Total Part Build Rating 18 | . . . . . . . . . . . . . . . . . . . . . . 18 . . . . . . . . . . . . Part Studies Acquired 9 | . . . . . . . . . 1 . 1 . . . . . 2 . . . . . . . . . . . 2 . . . 3 . Parts Repaired 7 | . 1 . 2 . 1 . . . . . . . . . . . . . . . . 2 . 1 . . . . . . . . . . Time 302 | . 26 . 92 . 44 . . . . . . . . . . . . . . . . 103 . 37 . . . . . . . . . . Parts Recycled . | . . . . . . . . . . . . . . . . . . . . . . . . . . . . . . . . . . . Recycled Matter . | . . . . . . . . . . . . . . . . . . . . . . . . . . . . . . . . . . . Retrieved Matter . | . . . . . . . . . . . . . . . . . . . . . . . . . . . . . . . . . . . Retrieved Components 3 | . . . . . . . . . . . . 2 . . . . . . . . . 1 . . . . . . . . . . . . Parts Scanalyzed . | . . . . . . . . . . . . . . . . . . . . . . . . . . . . . . . . . . . Part Schematics Acquired . | . . . . . . . . . . . . . . . . . . . . . . . . . . . . . . . . . . . Parts Damaged . | . . . . . . . . . . . . . . . . . . . . . . . . . . . . . . . . . . . Bothacking | -11 -10 -10 -8 -8 -8 -8 -7 -7 -7 -7 -6 -6 -6 -6 -6 -6 -5 -5 -5 -5 -4 -4 -4 -4 -4 -4 -4 -3 -3 -3 -3 -2 -2 -1 ------------ Run | Yrd Mat Sub Mat Gar Mat Gar Fac Gar Fac Gar Fac Ext Cet Arc Hub Gar Fac Upp Upp Zhi Pro Fac Was Fac Upp Upp War Pro Res Qua Frg Res Tes Acc Used RIF Installer . | . . . . . . . . . . . . . . . . . . . . . . . . . . . . . . . . . . . Robots Hacked . | . . . . . . . . . . . . . . . . . . . . . . . . . . . . . . . . . . . Non-combat . | . . . . . . . . . . . . . . . . . . . . . . . . . . . . . . . . . . . Combat . | . . . . . . . . . . . . . . . . . . . . . . . . . . . . . . . . . . . Robot Hacks Applied . | . . . . . . . . . . . . . . . . . . . . . . . . . . . . . . . . . . . Relay Couplers Released 100 | . . . . 26 . 19 . 22 4 5 . . . . . 17 4 . . . . . . . . . . . . . . 3 . . Machine Destruction 92 | . . . . 26 . 19 . 22 . 5 . . . . . 17 . . . . . . . . . . . . . . . 3 . . Programmers 8 | . . . . . . . . . 4 . . . . . . . 4 . . . . . . . . . . . . . . . . . Fabnet Peak Effective % . | . . . . . . . . . . . . . . . . . . . . . . . . . . . . . . . . . . . Robots Rewired 26 | . . . . 3 . 2 . 2 . . . 14 . . . . . . . . . . . . . . 5 . . . . . . . Allies Hacked 2 | . . . . 1 . . . 1 . . . . . . . . . . . . . . . . . . . . . . . . . . Hacks Repelled . | . . . . . . . . . . . . . . . . . . . . . . . . . . . . . . . . . . . Allies | -11 -10 -10 -8 -8 -8 -8 -7 -7 -7 -7 -6 -6 -6 -6 -6 -6 -5 -5 -5 -5 -4 -4 -4 -4 -4 -4 -4 -3 -3 -3 -3 -2 -2 -1 -------- Run | Yrd Mat Sub Mat Gar Mat Gar Fac Gar Fac Gar Fac Ext Cet Arc Hub Gar Fac Upp Upp Zhi Pro Fac Was Fac Upp Upp War Pro Res Qua Frg Res Tes Acc Total Allies 52 | . . 8 . 3 . 2 . 3 2 . 1 23 5 . . . . . . . . . . . . . 5 . . . . . . . Largest Group 14 | . . 5 5 3 . 2 1 3 2 2 1 10 14 5 . . . . . . . . . . . . 5 5 2 . . . . . Highest-Rated Group 842 | . . 95 95 30 . 62 31 151 74 74 10 393 842 387 . . . . . . . . . . . . 259 259 105 . . . . . Highest-Rated Ally 159 | . . 19 19 10 . 31 31 95 37 37 10 159 159 143 . . . . . . . . . . . . 56 56 56 . . . . . Initial Warlord ECA Mod 43 | . . . . . 12 12 23 23 33 33 33 33 33 33 33 33 43 43 43 43 42 42 42 42 42 42 42 41 41 41 41 40 40 39 Total Orders 5 | . . . . . . . . . . . . . . 1 . . . . . . . . . . . . 4 . . . . . . . STAY 3 | . . . . . . . . . . . . . . 1 . . . . . . . . . . . . 2 . . . . . . . FOLLOW 2 | . . . . . . . . . . . . . . . . . . . . . . . . . . . 2 . . . . . . . Ally Attacks 418 | . . 20 52 9 . 10 . 49 . 3 . 162 46 15 . . . . . . . . . . . . 18 27 7 . . . . . Total Damage 9815 | . . 282 995 111 . 145 . 1673 . 209 . 3034 1210 670 . . . . . . . . . . . . 514 728 244 . . . . . Kills 73 | . . 3 10 . . . . 12 . . . 29 7 3 . . . . . . . . . . . . 4 4 1 . . . . . Allies Corrupted 1 | . . . . 1 . . . . . . . . . . . . . . . . . . . . . . . . . . . . . . Allies Melted 1 | . . . . . . . . . . . . . . . . . . . . . . . . . . . 1 . . . . . . . Intel | -11 -10 -10 -8 -8 -8 -8 -7 -7 -7 -7 -6 -6 -6 -6 -6 -6 -5 -5 -5 -5 -4 -4 -4 -4 -4 -4 -4 -3 -3 -3 -3 -2 -2 -1 ------- Run | Yrd Mat Sub Mat Gar Mat Gar Fac Gar Fac Gar Fac Ext Cet Arc Hub Gar Fac Upp Upp Zhi Pro Fac Was Fac Upp Upp War Pro Res Qua Frg Res Tes Acc Active Infowar (turns) 28103 | . . 6157 37 . 606 . 71 125 942 84 106 64 . . 265 . 918 1109 1200 312 985 801 449 1009 918 1234 1145 1298 988 1507 2002 333 946 2492 Optics 3966 | . . . . . . . . . . . . . . . . . 603 . . . . . . . . . 4 . . . . 333 946 2080 Sensors 19580 | . . 6157 37 . . . . . . . . . . . . . 111 1109 1200 312 985 542 449 859 916 1234 1145 1298 569 963 1469 . 225 . Seismic 2711 | . . . . . 606 . 71 125 940 84 . . . . 265 . 620 . . . . . . . . . . . . . . . . . Cloaking 2462 | . . . . . . . . . . . . . . . . . . . . . . . . . . . 2 . . . . . . 2460 Jamming 5798 | . . . . . . . . . . . 106 64 . . . . 107 180 . . . 259 . 446 386 . . . 987 1483 1780 . . . ECM 2 | . . . . . . . . . 2 . . . . . . . . . . . . . . . . . . . . . . . . . Robot Analysis Total 4 | . . . . . . . . . . . . . . . . . . . . 4 . . . . . . . . . . . . . . Derelict Logs Recovered 7 | . . 2 . . . . . . . . . . . . . . . 1 1 . 1 . . . 1 1 . . . . . . . . Drone Launches . | . . . . . . . . . . . . . . . . . . . . . . . . . . . . . . . . . . . Drone Recoveries . | . . . . . . . . . . . . . . . . . . . . . . . . . . . . . . . . . . . Exploration | -11 -10 -10 -8 -8 -8 -8 -7 -7 -7 -7 -6 -6 -6 -6 -6 -6 -5 -5 -5 -5 -4 -4 -4 -4 -4 -4 -4 -3 -3 -3 -3 -2 -2 -1 ------------- Run | Yrd Mat Sub Mat Gar Mat Gar Fac Gar Fac Gar Fac Ext Cet Arc Hub Gar Fac Upp Upp Zhi Pro Fac Was Fac Upp Upp War Pro Res Qua Frg Res Tes Acc Turns Passed 54683 | 128 1909 9351 1846 2450 839 1831 239 2086 1877 211 265 1289 475 1085 548 1790 1762 1205 1200 312 1233 1141 618 1106 1053 1393 1619 1666 988 1982 4103 1586 946 2551 Spaces Moved 24084 | 43 728 3769 644 863 245 631 93 741 1005 108 442 1123 320 456 225 699 805 649 714 154 669 479 326 513 590 788 888 872 488 987 1395 827 367 438 Core 31 | . . . . . . . . . . 31 . . . . . . . . . . . . . . . . . . . . . . . . Treads 17904 | 43 728 986 408 808 245 631 93 741 1 9 . . 44 456 225 699 805 649 714 154 669 479 326 513 590 788 888 872 488 987 1395 665 367 438 Legs 3074 | . . 2783 236 55 . . . . . . . . . . . . . . . . . . . . . . . . . . . . . . Wheels 1204 | . . . . . . . . . 1004 38 . . . . . . . . . . . . . . . . . . . . . 162 . . Hover 1801 | . . . . . . . . . . . 402 1123 276 . . . . . . . . . . . . . . . . . . . . . Flight 70 | . . . . . . . . . . 30 40 . . . . . . . . . . . . . . . . . . . . . . . Fastest Speed 33 | 160 160 130 200 200 245 240 228 228 160 39 33 33 33 160 160 160 160 162 162 162 160 159 155 155 160 160 155 155 155 152 160 160 166 160 Average Speed 172 | 160 223 210 232 247 287 242 235 228 160 97 41 40 82 176 160 160 161 162 162 162 161 165 156 157 160 160 156 155 155 156 162 169 167 194 Slowest Speed 545 | 160 240 240 255 255 330 245 240 232 545 235 86 88 160 320 160 160 320 163 162 162 162 243 159 235 160 160 160 155 155 165 165 240 255 260 Overloaded Moves . | . . . . . . . . . . . . . . . . . . . . . . . . . . . . . . . . . . . Propulsion Burnouts . | . . . . . . . . . . . . . . . . . . . . . . . . . . . . . . . . . . . Robots Hopped 1 | . . . . . . . . 1 . . . . . . . . . . . . . . . . . . . . . . . . . . Potential Cave-ins 10 | . . . . . . . . . . . . . . . . . 2 . 2 . . . . 3 . . . . . . 3 . . . Cave-ins Triggered 2 | . . . . . . . . . . . . . . . . . . . . . . . . . . . . . . . 1 . 1 . Teleports 10 | . . . . . . . . . . . . . . . . . . . . . . . . . . . . . . . 9 . . 1 Exploration Rate (%) 57 | 4 96 97 55 83 35 82 4 90 37 31 13 86 56 98 33 81 32 78 85 60 79 17 97 20 65 89 89 92 14 71 34 30 63 16 Regions Visited 34 Branch Regions 16 Pre-discovered Areas 9 | . . 1 3 . . . . . . . . . . . . . . 1 . 3 . . . . . . 1 . . . . . . . Known Exits Taken 20 | . . . 1 . 1 . 1 . 1 . 1 . . . 1 . 1 1 1 1 1 . . 1 1 1 1 1 1 1 1 1 . . Unknown Exits Taken 7 | 1 1 1 . . . . . . . . . 1 1 1 . . . . . . . . . . . . . . . . . . 1 . Scrap Searched 16 | . . 9 . . . . . . . . . . . . . . . 3 1 . 1 . . . 1 1 . . . . . . . . Spaces Dug 744 | . . 14 . 28 25 2 2 8 22 36 1 51 . . 26 48 33 30 9 . 11 18 . 12 37 23 35 21 11 25 72 2 78 64 Terrain Destroyed 3302 | . 8 28 4 174 52 131 2 91 57 73 3 124 4 2 61 198 192 61 9 . 167 71 . 24 85 41 169 67 23 48 182 30 292 829 Melee 28 | . . 8 . . 12 . . . . . . 7 . . . . . . . . . . . . . . . . . . . 1 . . Projectile 597 | . . 20 4 . 2 1 2 . 13 1 3 12 4 2 20 28 47 10 9 . 8 39 . 24 18 13 2 9 23 36 87 16 54 90 AOE 2677 | . 8 . . 174 38 130 . 91 44 72 . 105 . . 41 170 145 51 . . 159 32 . . 67 28 167 58 . 12 95 13 238 739 Terrain Rammed . | . . . . . . . . . . . . . . . . . . . . . . . . . . . . . . . . . . . Walls Destroyed . | . . . . . . . . . . . . . . . . . . . . . . . . . . . . . . . . . . . Machines Disabled . | . . . . . . . . . . . . . . . . . . . . . . . . . . . . . . . . . . . Actions | -11 -10 -10 -8 -8 -8 -8 -7 -7 -7 -7 -6 -6 -6 -6 -6 -6 -5 -5 -5 -5 -4 -4 -4 -4 -4 -4 -4 -3 -3 -3 -3 -2 -2 -1 --------- Run | Yrd Mat Sub Mat Gar Mat Gar Fac Gar Fac Gar Fac Ext Cet Arc Hub Gar Fac Upp Upp Zhi Pro Fac Was Fac Upp Upp War Pro Res Qua Frg Res Tes Acc Total 33856 | 79 887 4990 880 1066 333 820 113 965 1189 177 513 1846 523 682 326 1190 1110 754 742 194 775 735 422 742 662 888 1103 1157 672 1346 2758 962 531 1724 Wait 5158 | 2 59 995 103 39 18 35 . 64 39 6 22 346 139 153 35 358 112 64 . . 52 149 34 135 33 59 112 259 123 136 611 29 19 818 Move 24054 | 42 727 3768 644 862 245 630 93 738 1005 107 441 1122 319 455 224 698 804 648 713 153 668 479 325 512 589 787 887 871 487 986 1395 826 366 438 Hop 1 | . . . . . . . . 1 . . . . . . . . . . . . . . . . . . . . . . . . . . Pick Up 367 | 4 17 17 25 3 9 10 3 7 17 . 12 19 11 8 5 6 19 2 4 5 1 10 7 4 . 3 8 . 7 28 58 10 6 22 Fast Attach 298 | . 2 6 7 . 4 4 3 2 14 7 14 9 8 7 1 6 25 3 5 7 2 7 11 10 1 1 17 . 5 29 32 30 13 6 Attach 188 | . 3 4 6 1 . 1 1 2 3 11 3 12 4 3 2 5 9 1 . 1 2 3 1 . . 1 7 . 2 9 23 2 7 59 Detach 72 | . 1 . 1 . . . . . 2 1 2 10 1 2 . . . . . 1 . 1 . . . . 4 . . 3 6 1 3 33 Swap 508 | 3 4 36 2 19 12 17 3 18 20 9 1 12 2 5 15 22 16 10 2 . 17 22 8 27 15 12 8 13 8 25 79 9 17 20 Drop 511 | 4 4 20 22 5 7 17 8 10 32 8 9 19 20 12 4 3 28 2 8 11 3 10 20 15 . 4 28 . 10 58 53 29 7 21 Fire 2176 | 23 60 73 65 88 22 89 2 88 55 18 9 82 19 13 36 92 95 24 10 16 30 53 16 37 23 21 20 14 30 67 468 23 93 302 Melee 187 | . . 71 . 2 16 . . 2 . 10 . 23 . 24 . . . . . . . . . . . . . . . 3 33 3 . . Ram 1 | . . . . . . . . . 1 . . . . . . . . . . . . . . . . . . . . . . . . . Kick . | . . . . . . . . . . . . . . . . . . . . . . . . . . . . . . . . . . . Crush 27 | 1 10 . 5 . . . . . 1 . . . . . 1 . 2 . . . . 1 . 2 1 . . . . 2 . . . 1 Escape Stasis 80 | . . . . 14 . 8 . 10 . . . 44 . . . . . . . . . . . . . . . . . . . . . 4 Rewire 209 | . . . . 33 . 9 . 15 . . . 140 . . . . . . . . . . . . . . 12 . . . . . . . Trap . | . . . . . . . . . . . . . . . . . . . . . . . . . . . . . . . . . . . Miscellaneous 19 | . . . . . . . . 8 . . . 8 . . 3 . . . . . . . . . . . . . . . . . . . Route ------- -11/Scrapyard -10/Materials (discovered 5 exits: [*Mat x3] / [*Min] / *Sub) -10/Subcaves (discovered 4 exits: *Mat x2 / [*Scr x2]) -8/Materials (discovered 4 exits: *Fac x3 / Gar) -8/Garrison (discovered 3 exits: *Mat x3) -8/Materials (discovered 2 exits: *Fac / Gar) -8/Garrison (discovered 3 exits: *Fac x3) -7/Factory -7/Garrison (discovered 3 exits: *Fac x3) -7/Factory (discovered 3 exits: *Fac x2 / Gar) -7/Garrison -6/Factory (discovered 5 exits: *Fac / *Low x2 / *Ext x2) -6/Extension (discovered 2 exits: *Fac / *Cet) -6/Cetus (discovered 2 exits: *Fac / [*Arc]) -6/Archives (discovered 3 exits: *Fac / *Hub x2) -6/Hub_04(d) -6/Garrison (discovered 3 exits: *Fac x3) -5/Factory (discovered 4 exits: *Fac x2 / *Upp x2) -5/Upper Caves -5/Upper Caves (discovered 2 exits: *Fac / *Zhi) -5/Zhirov -4/Proximity Caves -4/Factory (discovered 2 exits: Upp x2) -4/Waste -4/Factory (discovered 3 exits: *Res / *Upp x2) -4/Upper Caves -4/Upper Caves (discovered 2 exits: *Res / *War) -4/Warlord -3/Proximity Caves -3/Research (discovered 3 exits: Arm / *Qua x2) -3/Quarantine (discovered 3 exits: Res / [*Sec] / *Frg) -3/Protoforge -2/Research (discovered 2 exits: *Tes x2) -2/Testing -1/Access History --------- Turn | Location | Event 24 | -11/Scrapyard | Discovered new exit (range 3) 129 | -11/Scrapyard | Entered Materials 130 | -10/Materials | Met a group of wandering Federalists 302 | -10/Materials | Build established: Mutant 349 | -10/Materials | Discovered new exit (range 9) 397 | -10/Materials | Discovered new exit (range 13) 897 | -10/Materials | Discovered new exit (range 6) 1171 | -10/Materials | Discovered new exit (range 16) 1202 | -10/Materials | Repaired Lgt. Treads 1266 | -10/Materials | Discovered new exit (range 6) 2038 | -10/Materials | Entered Subcaves 2039 | -10/Subcaves | Continued accompanying wandering Federalists (5) 2039 | -10/Subcaves | Approached by a straggling Scientist 2763 | -10/Subcaves | Scientist uncovered a shortcut to Scraptown 3001 | -10/Subcaves | Learned location of 1 exit from Materials 3215 | -10/Subcaves | Disturbed a concealed Subdweller 3751 | -10/Subcaves | Learned location of Zion (-6) 3751 | -10/Subcaves | Met a Zionite searching for "candidates" 3763 | -10/Subcaves | Core integrity fell below 50% 4652 | -10/Subcaves | Disturbed a concealed Subdweller 4779 | -10/Subcaves | Visited Clippyterm 4786 | -10/Subcaves | Learned Factory trap positions 5313 | -10/Subcaves | Visited 4L-MR0's lab 5341 | -10/Subcaves | Found Prototype Leg 5341 | -10/Subcaves | Identified Cargo Legs 5343 | -10/Subcaves | Attached Cargo Legs, gained temporary slots: Utility x2 6028 | -10/Subcaves | A swath of the cavern ceiling suddenly collapsed 6188 | -10/Subcaves | A Subdweller sparked back to life 6228 | -10/Subcaves | A Subdweller sparked back to life 6228 | -10/Subcaves | A Subdweller sparked back to life 6262 | -10/Subcaves | Found Prototype Protection 6304 | -10/Subcaves | Visited triangular shrine 6316 | -10/Subcaves | Found Prototype Device 6316 | -10/Subcaves | Identified V3-11A's Pendant 6321 | -10/Subcaves | Befriended Subdweller 6411 | -10/Subcaves | Befriended Subdweller 6826 | -10/Subcaves | A swath of the cavern ceiling suddenly collapsed 6826 | -10/Subcaves | Befriended Subdweller 7040 | -10/Subcaves | Discovered new exit (range 10) 7045 | -10/Subcaves | Shifting Twisted Machinery released Sub. Power Source 7627 | -10/Subcaves | Shifting Twisted Machinery released Spk. Treads 7641 | -10/Subcaves | Shifting Twisted Machinery released Flamer 7672 | -10/Subcaves | Shifting Twisted Machinery released Barrage Gun 7707 | -10/Subcaves | Shifting Twisted Machinery released Sub. Optics 8208 | -10/Subcaves | Befriended Subdweller 8213 | -10/Subcaves | Befriended Subdweller 8333 | -10/Subcaves | Befriended Subdweller 8333 | -10/Subcaves | Befriended Subdweller 8333 | -10/Subcaves | Befriended Subdweller 8350 | -10/Subcaves | Discovered new exit (range 14) 11389 | -10/Subcaves | Entered Materials 11389 | -8/Materials | Accompanied by 5 allies 11389 | -8/Materials | Evolved 4 slots: Propulsion x2, Utility x2 11390 | -8/Materials | Identified exit to Factory 11636 | -8/Materials | Identified Gun Armor 11637 | -8/Materials | Attached Gun Armor, gained temporary slots: Weapon x2 11725 | -8/Materials | Garrison activated, responded to threat 11853 | -8/Materials | Discovered exit to Factory (range 16) 12132 | -8/Materials | Repaired Hrd. Light Armor Plating 12193 | -8/Materials | Repaired Enh. Autogun 12271 | -8/Materials | Build established: Scavenger-Tank 12834 | -8/Materials | Garrison activated, responded to threat 12997 | -8/Materials | Learned Storage stockpile data 13003 | -8/Materials | Discovered exit to Factory (range 7) 13080 | -8/Materials | Learned Factory scanalyzer intel 13126 | -8/Materials | Learned 4 Factory zone layouts 13131 | -8/Materials | Learned location of Extension (-6) 13145 | -8/Materials | Learned 4 Recycling zone layouts 13199 | -8/Materials | Learned 4 Recycling zone layouts 13235 | -8/Materials | Identified exit to Garrison 13235 | -8/Materials | Entered Garrison 13325 | -8/Garrison | Triggered checkpoint 13389 | -8/Garrison | Garrison Relay disabled 13668 | -8/Garrison | Phase Generator disabled 13834 | -8/Garrison | Destroyed 7 combat bots 13843 | -8/Garrison | Learned Materials security intel 14063 | -8/Garrison | Discovered new exit (range 10) 14259 | -8/Garrison | Triggered checkpoint 14498 | -8/Garrison | Discovered new exit (range 12) 14641 | -8/Garrison | Triggered checkpoint 14851 | -8/Garrison | Triggered checkpoint 14960 | -8/Garrison | Discovered new exit (range 55) 14960 | -8/Garrison | Discovered new exit (range 83) 14960 | -8/Garrison | Discovered new exit (range 12) 15167 | -8/Garrison | Triggered checkpoint 15171 | -8/Garrison | Triggered checkpoint 15206 | -8/Garrison | Garrison Relay disabled 15393 | -8/Garrison | Lost 3 allies 15473 | -8/Garrison | Triggered checkpoint 15488 | -8/Garrison | Garrison Relay disabled 15532 | -8/Garrison | Garrison Relay disabled 15685 | -8/Garrison | Entered Materials 16040 | -8/Materials | Build established: Mutant 16247 | -8/Materials | Repaired Mak. Light Armor Plating 16521 | -8/Materials | Discovered exit to Factory (range 14) 16524 | -8/Materials | Identified exit to Garrison 16524 | -8/Materials | Entered Garrison 16596 | -8/Garrison | Triggered checkpoint 16674 | -8/Garrison | Garrison Relay disabled 16787 | -8/Garrison | Build established: Scavenger-Mutant 16835 | -8/Garrison | Triggered checkpoint 16853 | -8/Garrison | Core integrity fell below 50% 16906 | -8/Garrison | Destroyed 7 combat bots 17156 | -8/Garrison | Phase Generator disabled 17205 | -8/Garrison | Discovered exit to Factory (range 10) 17263 | -8/Garrison | Garrison Relay disabled 17265 | -8/Garrison | Garrison Relay disabled 17304 | -8/Garrison | Triggered checkpoint 17406 | -8/Garrison | Garrison Relay disabled 17493 | -8/Garrison | Triggered checkpoint 17605 | -8/Garrison | Garrison Relay disabled 17638 | -8/Garrison | Triggered checkpoint 17824 | -8/Garrison | Discovered exit to Factory (range 3) 18068 | -8/Garrison | Triggered checkpoint 18178 | -8/Garrison | Triggered checkpoint 18271 | -8/Garrison | Garrison Relay disabled 18326 | -8/Garrison | Discovered exit to Factory (range 11) 18355 | -8/Garrison | Entered Factory 18355 | -7/Factory | Accompanied by 1 ally 18355 | -7/Factory | Evolved 2 slots: Power x1, Utility x1 18357 | -7/Factory | Loaded intel: 83 trap records 18358 | -7/Factory | Loaded intel: 4 scanalyzer locations 18594 | -7/Factory | Identified exit to Garrison 18594 | -7/Factory | Entered Garrison 18594 | -7/Garrison | Accompanied by 1 ally 18638 | -7/Garrison | Triggered checkpoint 18829 | -7/Garrison | Garrison Relay disabled 19082 | -7/Garrison | Build established: Mutant 19100 | -7/Garrison | Triggered checkpoint 19192 | -7/Garrison | Discovered new exit (range 9) 19318 | -7/Garrison | Garrison Relay disabled 19348 | -7/Garrison | Triggered checkpoint 19386 | -7/Garrison | Garrison Relay disabled 19514 | -7/Garrison | Triggered checkpoint 19524 | -7/Garrison | Build established: Scavenger-Mutant 19524 | -7/Garrison | Triggered checkpoint 19590 | -7/Garrison | Triggered checkpoint 19642 | -7/Garrison | Garrison Relay disabled 19720 | -7/Garrison | Discovered new exit (range 9) 19859 | -7/Garrison | Discovered new exit (range 9) 19996 | -7/Garrison | Triggered checkpoint 20085 | -7/Garrison | Garrison Relay disabled 20191 | -7/Garrison | Phase Generator disabled 20492 | -7/Garrison | System corruption reached 10% 20680 | -7/Garrison | Entered Factory 21080 | -7/Factory | First assault squad dispatched 21258 | -7/Factory | Discovered new exit (range 10) 22018 | -7/Factory | Build established: Mutant 22411 | -7/Factory | Discovered new exit (range 9) 22557 | -7/Factory | Identified exit to Garrison 22557 | -7/Factory | Entered Garrison 22557 | -7/Garrison | Accompanied by 2 allies 22619 | -7/Garrison | Triggered checkpoint 22646 | -7/Garrison | Triggered checkpoint 22648 | -7/Garrison | Core integrity fell below 50% 22667 | -7/Garrison | Triggered checkpoint 22687 | -7/Garrison | Heavy support dispatched to Factory 22688 | -7/Garrison | Destroyed 13 combat bots 22708 | -7/Garrison | Core integrity fell below 20% 22763 | -7/Garrison | Discovered new exit (range 10) 22768 | -7/Garrison | Entered Factory 22768 | -6/Factory | Evolved 2 slots: Propulsion x2 22769 | -6/Factory | Identified exit to Extension 22780 | -6/Factory | Lost 16 parts (3p6n3u4w) 22918 | -6/Factory | Discovered new exit (range 5) 22956 | -6/Factory | Identified exit to Lower Caves 22964 | -6/Factory | Discovered new exit (range 10) 23033 | -6/Factory | Entered Extension 23138 | -6/Extension | Disrupted transfer network 23480 | -6/Extension | Rescued a captive Derelict 23481 | -6/Extension | Rescued a captive Derelict 23536 | -6/Extension | Rescued A7 23553 | -6/Extension | Rescued a captive Derelict 23554 | -6/Extension | Rescued a captive Derelict 23557 | -6/Extension | Lost 4 allies 23865 | -6/Extension | Spotted B-75 Beast 23891 | -6/Extension | Allies destroyed B-75 Beast 23918 | -6/Extension | Spotted B-75 Beast 23948 | -6/Extension | Destroyed B-75 Beast 24004 | -6/Extension | Rescued a captive Derelict 24004 | -6/Extension | Rescued a captive Derelict 24083 | -6/Extension | First assault squad dispatched 24179 | -6/Extension | Destroyed 7 combat bots 24245 | -6/Extension | Rescued a captive Derelict 24247 | -6/Extension | Rescued a captive Derelict 24259 | -6/Extension | Discovered new exit (range 10) 24260 | -6/Extension | Discovered new exit (range 6) 24322 | -6/Extension | Entered Cetus 24322 | -6/Cetus | Accompanied by 10 allies (A7) 24327 | -6/Cetus | Acquired a Cetus Manufacturing Module code from A7 24356 | -6/Cetus | Spotted Cetus Guard 24357 | -6/Cetus | Spotted Cetus Guard 24361 | -6/Cetus | Spotted Cetus Guard 24361 | -6/Cetus | Destroyed Cetus Guard 24362 | -6/Cetus | Spotted Cetus Guard 24369 | -6/Cetus | Destroyed Cetus Guard 24372 | -6/Cetus | Allies destroyed Cetus Guard 24373 | -6/Cetus | Destroyed Cetus Guard 24412 | -6/Cetus | Started Cetus Manufacturing Module 24422 | -6/Cetus | Discovered new exit (range 15) 24437 | -6/Cetus | Manufactured an Enhanced Grunt 24462 | -6/Cetus | Manufactured an Enhanced Grunt 24487 | -6/Cetus | Manufactured an Enhanced Grunt 24512 | -6/Cetus | Manufactured an Enhanced Grunt 24537 | -6/Cetus | Manufactured an Enhanced Grunt 24556 | -6/Cetus | Spotted Cetus Guard 24556 | -6/Cetus | Spotted Cetus Guard 24557 | -6/Cetus | Spotted Cetus Guard 24557 | -6/Cetus | Spotted Cetus Guard 24560 | -6/Cetus | Build established: Commander-Mutant 24563 | -6/Cetus | Allies destroyed Cetus Guard 24579 | -6/Cetus | Allies destroyed Cetus Guard 24581 | -6/Cetus | Allies destroyed Cetus Guard 24583 | -6/Cetus | Destroyed Cetus Guard 24590 | -6/Cetus | Discovered new exit (range 16) 24596 | -6/Cetus | Met Revision 17 24607 | -6/Cetus | Lost 9 allies 24607 | -6/Cetus | Found Prototype Device 24607 | -6/Cetus | Identified Exp. Thermal Shield 24797 | -6/Cetus | Entered Archives 24797 | -6/Archives | Accompanied by 5 allies (A7) 24929 | -6/Archives | Discovered new exit (range 16) 24983 | -6/Archives | Build established: Scavenger-Mutant 25032 | -6/Archives | Discovered new exit (range 16) 25199 | -6/Archives | Discovered new exit (range 15) 25882 | -6/Archives | Entered Hub_04(d) 26039 | -6/Hub_04(d) | Identified exit to Garrison 26257 | -6/Hub_04(d) | Destroyed 9 combat bots 26322 | -6/Hub_04(d) | Network Hub disabled 26430 | -6/Hub_04(d) | Entered Garrison 26557 | -6/Garrison | Core integrity fell below 50% 26694 | -6/Garrison | Triggered checkpoint 26770 | -6/Garrison | System corruption reached 10% 26813 | -6/Garrison | Garrison Relay disabled 27016 | -6/Garrison | Triggered checkpoint 27220 | -6/Garrison | Garrison Relay disabled 27260 | -6/Garrison | Discovered new exit (range 11) 27365 | -6/Garrison | Triggered checkpoint 27506 | -6/Garrison | Garrison Relay disabled 27526 | -6/Garrison | Phase Generator disabled 27611 | -6/Garrison | Discovered new exit (range 13) 27731 | -6/Garrison | Triggered checkpoint 27996 | -6/Garrison | Triggered checkpoint 28016 | -6/Garrison | Garrison Relay disabled 28184 | -6/Garrison | Discovered new exit (range 12) 28220 | -6/Garrison | Entered Factory 28220 | -5/Factory | Evolved 2 slots: Utility x2 28432 | -5/Factory | Found Prototype Launcher 28432 | -5/Factory | Identified Mni. Smartbomb Launcher 28488 | -5/Factory | Found Powered Armor 28520 | -5/Factory | First assault squad dispatched 29135 | -5/Factory | Discovered new exit (range 7) 29283 | -5/Factory | Identified exit to Upper Caves 29332 | -5/Factory | Destroyed 11 combat bots 29766 | -5/Factory | System corruption reached 10% 29828 | -5/Factory | Discovered new exit (range 11) 29911 | -5/Factory | Lost 5 parts (1p1n1u2w) 29982 | -5/Factory | Entered Upper Caves 29983 | -5/Upper Caves | Encountered a Warlord checkpoint 29988 | -5/Upper Caves | Met a Warlord Commander 29989 | -5/Upper Caves | Learned location of Warlord (-4) 29990 | -5/Upper Caves | Warlord Commander delivered Encrypted Comm Array 29994 | -5/Upper Caves | Learned Factory interactive machine intel 31118 | -5/Upper Caves | Discovered new exit (range 6) 31127 | -5/Upper Caves | Identified exit to Upper Caves 31187 | -5/Upper Caves | Entered another Upper Caves area 31188 | -5/Upper Caves | Encountered a Warlord checkpoint 31307 | -5/Upper Caves | Discovered new exit (range 15) 32073 | -5/Upper Caves | Discovered new exit (range 8) 32090 | -5/Upper Caves | Learned 8 Factory zone layouts 32385 | -5/Upper Caves | Identified exit to Zhirov 32387 | -5/Upper Caves | Entered Zhirov 32389 | -5/Zhirov | Discovered new exit (range 3) 32418 | -5/Zhirov | Met Zhirov 32448 | -5/Zhirov | Learned location of Quarantine (-3) 32448 | -5/Zhirov | Learned location of Testing (-2) 32448 | -5/Zhirov | Learned location of Command (-1) 32463 | -5/Zhirov | Zhirov requested help retrieving the SGEMP Prototype 32488 | -5/Zhirov | Found Alien Artifact 32488 | -5/Zhirov | Identified Integrated Dissipator 32488 | -5/Zhirov | Installed Integrated Dissipator, increased core heat dissipation (+20) 32616 | -5/Zhirov | Found Alien Artifact 32691 | -5/Zhirov | Identified exit to Proximity Caves 32696 | -5/Zhirov | Cloak Generator disabled 32696 | -5/Zhirov | Attacked by Zhirov 32699 | -5/Zhirov | Entered Proximity Caves 32832 | -4/Proximity Caves | Attracted the attention of an 0b10 checkpoint 32876 | -4/Proximity Caves | Destroyed 7 combat bots 33486 | -4/Proximity Caves | Learned Research terminal intel 33856 | -4/Proximity Caves | Discovered new exit (range 9) 33929 | -4/Proximity Caves | Identified exit to Factory 33932 | -4/Proximity Caves | Entered Factory 33932 | -4/Factory | Evolved 2 slots: Utility x1, Weapon x1 33934 | -4/Factory | Loaded intel: 53 interactive machine locations 33990 | -4/Factory | Watched by a mysterious "MATRIX" hacker. 34039 | -4/Factory | Repaired Adv. KE Penetrator 34132 | -4/Factory | Repaired Centrium Heavy Treads 34305 | -4/Factory | Fabricated Enh. Nova Cannon? 34651 | -4/Factory | Identified exit to Upper Caves 34931 | -4/Factory | Build established: Scavenger-Tank 35073 | -4/Factory | Sucked down chute 35073 | -4/Factory | Entered Waste 35073 | -4/Waste | The area was eerily silent 35446 | -4/Waste | Found Prototype Device 35446 | -4/Waste | Identified Exp. Phase Shifter 35602 | -4/Waste | Discovered new exit (range 13) 35689 | -4/Waste | Identified exit to Factory 35691 | -4/Waste | Entered Factory 35762 | -4/Factory | Repaired Enh. Nova Cannon 35844 | -4/Factory | Discovered new exit (range 10) 35862 | -4/Factory | Identified exit to Research 36324 | -4/Factory | Spotted B-86 Titan 36337 | -4/Factory | Found Prototype Hackware 36337 | -4/Factory | Identified Exp. Hacking Suite 36353 | -4/Factory | Destroyed B-86 Titan 36797 | -4/Factory | Entered Upper Caves 36816 | -4/Upper Caves | Learned Research interactive machine intel 37097 | -4/Upper Caves | Build established: Scavenger-Mutant 37397 | -4/Upper Caves | Build established: Scavenger-Tank 37707 | -4/Upper Caves | Discovered new exit (range 9) 37764 | -4/Upper Caves | Identified exit to Upper Caves 37850 | -4/Upper Caves | Entered another Upper Caves area 37850 | -4/Upper Caves | Discovered exit to Research (range 12) 37910 | -4/Upper Caves | Spotted B-86 Titan 37938 | -4/Upper Caves | Destroyed B-86 Titan 39004 | -4/Upper Caves | Learned 4 Research zone layouts 39058 | -4/Upper Caves | Discovered new exit (range 14) 39110 | -4/Upper Caves | Identified exit to Warlord 39243 | -4/Upper Caves | Entered Warlord 39298 | -4/Warlord | System corruption cleaned by Quarantine Array 39642 | -4/Warlord | Learned Factory recycling unit intel 39642 | -4/Warlord | Learned Research terminal intel 39642 | -4/Warlord | Learned 4 Armory zone layouts 39642 | -4/Warlord | Learned 4 Armory zone layouts 39642 | -4/Warlord | Learned 4 Research zone layouts 39642 | -4/Warlord | Learned 4 Quarantine zone layouts 39642 | -4/Warlord | Learned location of Armory (-3) 39642 | -4/Warlord | Learned Research trap positions 39799 | -4/Warlord | Found Prototype Device 39799 | -4/Warlord | Identified Exp. Cloaking Device 39812 | -4/Warlord | Found Prototype Processor 39812 | -4/Warlord | Identified Spectral Analyzer 39831 | -4/Warlord | Found Prototype Reactor 39837 | -4/Warlord | Identified Vortex Chain Reactor 39921 | -4/Warlord | Met Warlord 39946 | -4/Warlord | Warlord's base attacked by MAIN.C 39992 | -4/Warlord | Found Prototype Energy Gun 39992 | -4/Warlord | Identified Vortex Shotgun 40001 | -4/Warlord | Found Prototype Energy Gun 40001 | -4/Warlord | Identified Vortex Rail 40141 | -4/Warlord | Found Prototype Launcher 40296 | -4/Warlord | Warlord forces counterattacked 40383 | -4/Warlord | Spotted Executioner 40395 | -4/Warlord | Identified Vortex Catalyst Activator 40409 | -4/Warlord | Destroyed Executioner 40418 | -4/Warlord | Destroyed B-86 Titan 40439 | -4/Warlord | Destroyed 17 combat bots 40440 | -4/Warlord | Lost 19 allies 40621 | -4/Warlord | Warlord base infiltrated, sounded retreat 40622 | -4/Warlord | Enhanced Grunt warped into view 40622 | -4/Warlord | Enhanced Grunt warped into view 40622 | -4/Warlord | Enhanced Grunt warped into view 40622 | -4/Warlord | Enhanced Demolisher warped into view 40622 | -4/Warlord | Enhanced Demolisher warped into view 40622 | -4/Warlord | Enhanced Demolisher warped into view 40649 | -4/Warlord | Spotted Striker 40680 | -4/Warlord | Lost 3 allies 40777 | -4/Warlord | Spotted Striker 40777 | -4/Warlord | Spotted Striker 40782 | -4/Warlord | Spotted Striker 40826 | -4/Warlord | Destroyed 10 combat bots 40827 | -4/Warlord | Discovered new exit (range 15) 40843 | -4/Warlord | Lost 11 allies 40846 | -4/Warlord | Identified exit to Proximity Caves 40862 | -4/Warlord | Entered Proximity Caves 40862 | -3/Proximity Caves | Accompanied by 5 allies 42181 | -3/Proximity Caves | Destroyed 8 combat bots 42300 | -3/Proximity Caves | Discovered exit to Research (range 15) 42528 | -3/Proximity Caves | Entered Research 42528 | -3/Research | Accompanied by 2 allies 42528 | -3/Research | Evolved 2 slots: Utility x2 42529 | -3/Research | Identified exit to Armory 42530 | -3/Research | Loaded intel: 92 trap records 42531 | -3/Research | Loaded intel: 45 interactive machine locations 42532 | -3/Research | Loaded intel: 22 terminal locations 42594 | -3/Research | Identified exit to Quarantine 42728 | -3/Research | Revision forces began assault on 0b10 42834 | -3/Research | Met up with Revision 17++ 43126 | -3/Research | Found Prototype Launcher 43152 | -3/Research | Identified Tactical Quantum Warhead 43228 | -3/Research | Research terminal network offline 43303 | -3/Research | Found Prototype Processor 43303 | -3/Research | Identified Exp. Melee Analysis Suite 43516 | -3/Research | Entered Quarantine 43558 | -3/Quarantine | Found Fusion Bomb Launcher 43802 | -3/Quarantine | Found Alien Artifact 43810 | -3/Quarantine | Found Alien Artifact 43861 | -3/Quarantine | Found Alien Reactor 43919 | -3/Quarantine | Cryocooling Duct disabled 43934 | -3/Quarantine | Ambient heat levels rising (+20) 43934 | -3/Quarantine | Non-combat units ordered to evacuate 44006 | -3/Quarantine | Found Alien Artifact 44030 | -3/Quarantine | Found Alien Energy Cannon 44124 | -3/Quarantine | Cryocooling Duct disabled 44139 | -3/Quarantine | Ambient heat levels rising (+20) 44139 | -3/Quarantine | Combat units ordered to evacuate 44145 | -3/Quarantine | Build established: Tank 44239 | -3/Quarantine | Quarantine Guard activated 44457 | -3/Quarantine | Discovered new exit (range 14) 44486 | -3/Quarantine | Spotted Quarantine Guard 44491 | -3/Quarantine | Destroyed Quarantine Guard 44733 | -3/Quarantine | Spotted Quarantine Guard 44774 | -3/Quarantine | Destroyed Quarantine Guard 44776 | -3/Quarantine | Spotted Quarantine Guard 44782 | -3/Quarantine | Destroyed Quarantine Guard 44808 | -3/Quarantine | Found Alien Impact Weapon 44970 | -3/Quarantine | Identified Core Stripper 45015 | -3/Quarantine | Spotted Fortress 45028 | -3/Quarantine | Destroyed Fortress 45041 | -3/Quarantine | Found Prototype Device 45041 | -3/Quarantine | Identified Thermal Barrier 45073 | -3/Quarantine | Found Prototype Protection 45073 | -3/Quarantine | Identified Centrium Heavy Armor Plating 45085 | -3/Quarantine | Found Prototype Device 45085 | -3/Quarantine | Identified Exp. EM Shield 45095 | -3/Quarantine | Found Prototype Device 45095 | -3/Quarantine | Identified Exp. Force Field 45221 | -3/Quarantine | Destroyed Quarantine Guard 45223 | -3/Quarantine | Destroyed Quarantine Guard 45249 | -3/Quarantine | Discovered new exit (range 16) 45251 | -3/Quarantine | Discovered new exit (range 15) 45355 | -3/Quarantine | Found Vortex Chain Reactor 45476 | -3/Quarantine | Identified exit to Protoforge 45487 | -3/Quarantine | System corruption reached 10% 45498 | -3/Quarantine | Entered Protoforge 45521 | -3/Protoforge | Identified exit to Research 45549 | -3/Protoforge | Spotted Hotshot 45549 | -3/Protoforge | Spotted Hotshot 45576 | -3/Protoforge | Spotted Hotshot 45577 | -3/Protoforge | Spotted Hotshot 45578 | -3/Protoforge | Destroyed Hotshot 45592 | -3/Protoforge | Destroyed Hotshot 45595 | -3/Protoforge | Destroyed Hotshot 45598 | -3/Protoforge | Destroyed Hotshot 45974 | -3/Protoforge | Spotted Hotshot 45974 | -3/Protoforge | Spotted Hotshot 46130 | -3/Protoforge | Identified Dimensional Node Initializer 46130 | -3/Protoforge | Initialized slip node 46220 | -3/Protoforge | Found Prototype Storage 46220 | -3/Protoforge | Identified Cep. Chromion Battery 46229 | -3/Protoforge | Found Cep. Chromion Battery 46241 | -3/Protoforge | Found Prototype Storage 46241 | -3/Protoforge | Identified Cep. NT7 Matterbank 46345 | -3/Protoforge | Superfortress began startup sequence 46449 | -3/Protoforge | Forge Plexus network access discovered 46493 | -3/Protoforge | Found Crosscalibrator 46507 | -3/Protoforge | Spotted Immortal 46510 | -3/Protoforge | Spotted Immortal 46530 | -3/Protoforge | Destroyed Immortal 46538 | -3/Protoforge | Destroyed Immortal 46549 | -3/Protoforge | Spotted Decapitator 46549 | -3/Protoforge | Spotted Decapitator 46549 | -3/Protoforge | Spotted Decapitator 46549 | -3/Protoforge | Spotted Decapitator 46567 | -3/Protoforge | Found Corrupted Cep. Antimissile System 46588 | -3/Protoforge | Destroyed Decapitator 46589 | -3/Protoforge | Destroyed Decapitator 46589 | -3/Protoforge | Destroyed Decapitator 46593 | -3/Protoforge | Destroyed Decapitator 46717 | -3/Protoforge | Found Cep. Lightning Penetrator 47214 | -3/Protoforge | Found Cep. Plasma Driver 47234 | -3/Protoforge | Found Exp. Jetlance 47277 | -3/Protoforge | Spotted V530-s 47294 | -3/Protoforge | Destroyed V530-s 47308 | -3/Protoforge | Found Cep. Core Shell 47325 | -3/Protoforge | Found Prototype Ballistic Cannon 47325 | -3/Protoforge | Identified Cep. Helical Railcannon 47340 | -3/Protoforge | Found Prototype Energy Gun 47340 | -3/Protoforge | Identified Cep. Variable Chargecaster 47399 | -3/Protoforge | Found Cep. Plasma Driver 47401 | -3/Protoforge | Found Faulty Cep. Plasma Driver 47766 | -3/Protoforge | Found Cep. Antigrav Storage Unit 47773 | -3/Protoforge | Found Faulty Cep. Matter Streamer 47794 | -3/Protoforge | Found Faulty Cep. Matter Streamer 47798 | -3/Protoforge | Found Cep. Chromion Battery 47823 | -3/Protoforge | Build established: Scavenger-Tank 47956 | -3/Protoforge | Spotted Hotshot 47958 | -3/Protoforge | Spotted Hotshot 47959 | -3/Protoforge | Spotted Hotshot 47959 | -3/Protoforge | Spotted Hotshot 47971 | -3/Protoforge | Destroyed Hotshot 47982 | -3/Protoforge | Destroyed Hotshot 47988 | -3/Protoforge | Destroyed Hotshot 47991 | -3/Protoforge | Destroyed Hotshot 47998 | -3/Protoforge | First assault squad dispatched 48098 | -3/Protoforge | Found Exp. Force Field 48103 | -3/Protoforge | Found Exp. Remote Shield 48127 | -3/Protoforge | Found Faulty Cep. Reaction Jets 48152 | -3/Protoforge | Found Cep. Reaction Jets 48155 | -3/Protoforge | Found Faulty Cep. RG22 Armor 48158 | -3/Protoforge | Found Faulty Cep. RG22 Armor 48373 | -3/Protoforge | Spotted Decapitator 48379 | -3/Protoforge | Spotted Decapitator 48379 | -3/Protoforge | Spotted Decapitator 48379 | -3/Protoforge | Spotted Decapitator 48383 | -3/Protoforge | Destroyed Decapitator 48393 | -3/Protoforge | Destroyed Decapitator 48405 | -3/Protoforge | Destroyed Decapitator 48428 | -3/Protoforge | Found Faulty Cep. Rapid Grenade Launcher 48429 | -3/Protoforge | Lost 3 parts (2u1w) 48501 | -3/Protoforge | Found Cep. Rapid Grenade Launcher 48522 | -3/Protoforge | Found Cep. Arcsight Missile Launcher 48692 | -3/Protoforge | Destroyed Decapitator 48765 | -3/Protoforge | System corruption reached 30% 48856 | -3/Protoforge | Build established: Scavenger-Mutant 48991 | -3/Protoforge | Destroyed 8 combat bots 49041 | -3/Protoforge | Additional patrols dispatched to research labs 49063 | -3/Protoforge | Found Transdimensional Reconstructor 49074 | -3/Protoforge | Found Prototype Device 49080 | -3/Protoforge | Identified Cep. Navigation Harness 49135 | -3/Protoforge | Spotted AP7-3 49140 | -3/Protoforge | Spotted AP7-3 49168 | -3/Protoforge | Destroyed AP7-3 49168 | -3/Protoforge | Destroyed AP7-3 49192 | -3/Protoforge | Lost 4 parts (2p1n1w) 49331 | -3/Protoforge | Found Cep. Core Analysis Suite 49339 | -3/Protoforge | Found Cep. Cloak Mesh 49341 | -3/Protoforge | Found Cep. Cloak Mesh 49354 | -3/Protoforge | Found Cep. Thermoelectric Network 49357 | -3/Protoforge | Found Cep. Thermoelectric Network 49361 | -3/Protoforge | Found Cep. Core Analysis Suite 49381 | -3/Protoforge | Build established: Mutant 49452 | -3/Protoforge | Spotted V440-k 49454 | -3/Protoforge | Destroyed V440-k 49470 | -3/Protoforge | Found Prototype Device 49470 | -3/Protoforge | Identified Exp. Shield Generator 49517 | -3/Protoforge | High security lockdown imminent 49557 | -3/Protoforge | Crushed by falling debris 49586 | -3/Protoforge | Warped through subspace to slip node 49593 | -3/Protoforge | Spotted Hotshot 49597 | -3/Protoforge | High security lockdown engaged 49601 | -3/Protoforge | Entered Research 49601 | -2/Research | Warlord forces began assault on 0b10 49601 | -2/Research | Evolved 2 slots: Power x1, Utility x1 49602 | -2/Research | Loaded intel: 24 terminal locations 49626 | -2/Research | Distinguished unit "The Professionals" dispatched to help 49626 | -2/Research | Distinguished unit "Lucky Slug" dispatched to help 49630 | -2/Research | Lost 3 parts (1n2u) 49711 | -2/Research | Research machine network offline 49845 | -2/Research | Lost 7 allies 49850 | -2/Research | Destroyed 8 combat bots 50118 | -2/Research | Build established: Scavenger-Mutant 50343 | -2/Research | Lost 3 allies 50390 | -2/Research | Borebot progress halted 50490 | -2/Research | Found Prototype Processor 50490 | -2/Research | Identified Exp. Core Analyzer 50671 | -2/Research | Spotted Striker 50725 | -2/Research | Lost 6 allies 50760 | -2/Research | Build established: Scavenger-Tank 50762 | -2/Research | Borebot progress halted 50801 | -2/Research | Discovered new exit (range 12) 50812 | -2/Research | Spotted Striker 50813 | -2/Research | Spotted Striker 50822 | -2/Research | Destroyed Striker 50829 | -2/Research | Destroyed Striker 50844 | -2/Research | Identified exit to Testing 50848 | -2/Research | Found Prototype Processor 50848 | -2/Research | Identified Exp. Targeting Computer 50947 | -2/Research | Discovered exit to Testing (range 11) 51018 | -2/Research | Borebot progress halted 51103 | -2/Research | Given Cave Seal Controls access code 51131 | -2/Research | Spotted Striker 51148 | -2/Research | Destroyed Striker 51172 | -2/Research | Lost 4 allies 51187 | -2/Research | Entered Testing 51318 | -2/Testing | Garrison activated, responded to threat 51376 | -2/Testing | Unchained authorized (6S-H0T) 51388 | -2/Testing | Lost 5 allies 51437 | -2/Testing | First assault squad dispatched 51524 | -2/Testing | Spotted PY-58T4G6UMRF 51540 | -2/Testing | Found Centrium Heavy Armor Plating 51560 | -2/Testing | Identified Core Cannon 51803 | -2/Testing | Build established: Tank 51820 | -2/Testing | Destroyed 10 combat bots 51946 | -2/Testing | Spotted Striker 51949 | -2/Testing | Spotted Striker 51969 | -2/Testing | Destroyed Striker 51989 | -2/Testing | Destroyed Striker 52038 | -2/Testing | Destroyed 10 combat bots 52039 | -2/Testing | Lost 3 parts (2u1w) 52121 | -2/Testing | Discovered new exit (range 7) 52122 | -2/Testing | Crushed by falling debris 52122 | -2/Testing | System corruption reached 10% 52133 | -2/Testing | Entered Access 52133 | -1/Access | Evolved 2 slots: Power x1, Weapon x1 52219 | -1/Access | Spotted Executioner 52222 | -1/Access | Spotted Executioner 52273 | -1/Access | Found Exp. Core Analyzer 52312 | -1/Access | Lost 7 allies 52314 | -1/Access | Spotted Executioner 52330 | -1/Access | Spotted Executioner 52383 | -1/Access | First assault squad dispatched 52423 | -1/Access | Spotted Executioner 52425 | -1/Access | Spotted Executioner 52430 | -1/Access | Destroyed Executioner 52440 | -1/Access | Destroyed Executioner 52446 | -1/Access | Build established: Generator-Tank 52734 | -1/Access | Spotted Executioner 52736 | -1/Access | Spotted Executioner 52739 | -1/Access | Destroyed Executioner 52739 | -1/Access | Destroyed Executioner 53054 | -1/Access | High security lockdown imminent 53134 | -1/Access | High security lockdown engaged 53233 | -1/Access | Destroyed 9 combat bots 53304 | -1/Access | Spotted Investigator 53308 | -1/Access | Destroyed Investigator 53369 | -1/Access | Destroyed 18 combat bots 53479 | -1/Access | Spotted Striker 53486 | -1/Access | Destroyed Striker 53512 | -1/Access | Destroyed 23 combat bots 53598 | -1/Access | Destroyed Investigator 53605 | -1/Access | Spotted Executioner 53605 | -1/Access | Spotted Executioner 53607 | -1/Access | Destroyed Executioner 53624 | -1/Access | Destroyed Executioner 53645 | -1/Access | Destroyed 8 combat bots 53697 | -1/Access | Destroyed 13 combat bots 53697 | -1/Access | Spotted Striker 53697 | -1/Access | Spotted Striker 53698 | -1/Access | Spotted Striker 53698 | -1/Access | Spotted Striker 53701 | -1/Access | Destroyed Striker 53703 | -1/Access | Destroyed Striker 53703 | -1/Access | Destroyed Striker 53708 | -1/Access | Destroyed Striker 53729 | -1/Access | Destroyed 8 combat bots 53775 | -1/Access | Destroyed Investigator 53825 | -1/Access | Destroyed 14 combat bots 53911 | -1/Access | Destroyed Investigator 53931 | -1/Access | Spotted Executioner 53931 | -1/Access | Spotted Executioner 53931 | -1/Access | Spotted Striker 53931 | -1/Access | Spotted Striker 53931 | -1/Access | Spotted Striker 53933 | -1/Access | Spotted Striker 53933 | -1/Access | Spotted Executioner 53937 | -1/Access | Destroyed Striker 53937 | -1/Access | Destroyed Executioner 53939 | -1/Access | Destroyed Executioner 53939 | -1/Access | Destroyed Striker 53945 | -1/Access | Destroyed Striker 53966 | -1/Access | Destroyed 27 combat bots 53972 | -1/Access | Destroyed Executioner 53995 | -1/Access | Lost 4 parts (1p1n1u1w) 54030 | -1/Access | Spotted Executioner 54030 | -1/Access | Spotted Striker 54038 | -1/Access | Destroyed Executioner 54038 | -1/Access | Destroyed Striker 54086 | -1/Access | Destroyed 14 combat bots 54205 | -1/Access | Spotted Executioner 54205 | -1/Access | Spotted Striker 54207 | -1/Access | Spotted Striker 54207 | -1/Access | Spotted Executioner 54207 | -1/Access | Spotted Striker 54209 | -1/Access | Destroyed Striker 54211 | -1/Access | Destroyed Executioner 54213 | -1/Access | Destroyed Striker 54214 | -1/Access | System corruption reached 10% 54215 | -1/Access | Spotted Executioner 54222 | -1/Access | Destroyed Executioner 54228 | -1/Access | Destroyed Striker 54231 | -1/Access | Destroyed Executioner 54246 | -1/Access | Lost 4 parts (1p1n2u) 54265 | -1/Access | Destroyed 21 combat bots 54329 | -1/Access | Spotted Striker 54329 | -1/Access | Spotted Executioner 54332 | -1/Access | Core integrity fell below 50% 54343 | -1/Access | Destroyed Executioner 54346 | -1/Access | Destroyed Striker 54356 | -1/Access | Identified Hpw. Transdimensional Reconstructor 54356 | -1/Access | Warped through subspace 54427 | -1/Access | Energy Cycler disabled 54472 | -1/Access | Build established: Scavenger-Tank 54550 | -1/Access | Spotted Executioner 54550 | -1/Access | Spotted Striker 54550 | -1/Access | Spotted Striker 54550 | -1/Access | Spotted Investigator 54551 | -1/Access | Destroyed Executioner 54552 | -1/Access | Scanned by Researcher 54553 | -1/Access | Destroyed Investigator 54556 | -1/Access | Spotted Striker 54556 | -1/Access | Spotted Striker 54557 | -1/Access | Destroyed Striker 54563 | -1/Access | Destroyed Striker 54570 | -1/Access | Destroyed Striker 54577 | -1/Access | Destroyed Striker 54591 | -1/Access | Lost 3 parts (1n2w) 54593 | -1/Access | Destroyed Striker 54599 | -1/Access | Spotted Striker 54599 | -1/Access | Spotted Executioner 54607 | -1/Access | Destroyed Executioner 54621 | -1/Access | Destroyed Striker 54625 | -1/Access | Core integrity fell below 20% 54626 | -1/Access | Destroyed Executioner 54628 | -1/Access | System corruption reached 30% 54629 | -1/Access | Identified Subatomic Replicator 54629 | -1/Access | Used Subatomic Replicator to replicate Gamma Rifle 54661 | -1/Access | Destroyed 23 combat bots 54664 | -1/Access | Spotted Executioner 54664 | -1/Access | Spotted Striker 54664 | -1/Access | Spotted Investigator 54666 | -1/Access | Destroyed Investigator 54684 | -1/Access | Destroyed by Executioner with Helical Railgun Last Messages --------------- 54679_ P-80 Master stasis bubble strength at 69. 54679_ M-36 Artificer stasis bubble bursts. 54680_ K-01 Serf collects debris. 54680_ P-80 Master stasis bubble strength at 193. 54680_ G-73 Enforcer stasis bubble strength at 62. 54680_ P-80 Master stasis bubble strength at 56. 54681_ P-80 Master stasis bubble strength at 186. 54681_ G-73 Enforcer stasis bubble strength at 39. 54681_ P-80 Master stasis bubble strength at 43. 54682_ P-80 Master stasis bubble strength at 179. 54682_ Door malfunctions. 54682_ G-73 Enforcer stasis bubble strength at 16. 54682_ P-80 Master stasis bubble strength at 30. 54683_ P-80 Master stasis bubble strength at 172. 54683_ G-73 Enforcer stasis bubble bursts. 54683_ P-80 Master stasis bubble strength at 17. 54683_ K-01 Serf collects debris. 54684_ P-80 Master stasis bubble strength at 165. 54684_ P-80 Master stasis bubble strength at 4. 54684_ Penetrated by Slug. Map ----- +----------------------------------------------------+ | ?????????????????????? ? ? # | | ???????????????????? ? # # ### | | ????????????????? [ # # # #?? | | ????????????????? # # #?? | | ?????????????????# ?#####? #?? | | ?????????????????# #????????????+#?? | | ?????????????????# = #???????????????? | | ?????????????????# [ #???????????????? | | ?????????????????? = #???????????????? | | ?????????#######??# #???????????????? | | ?????# """T"""??# #???????????????? | | ?????? """ "" ?# #???????????????? | | ??????? ?# %# ######???????????????? | | ????????? # !!!# ????????????????????? | | ??????????""""" # [%###????????????????????? | | ??????????"" "" ; ![ #????????????????????? | | ??????????"" ; p% ##???????????????????? | | ???????????""" # pk= #???????????????????? | | ???????????"""" ; %]%= #???????????????????? | | ???????????"""" ; =g*==*[ #???????????????????? | | ??????????? ??# *!g =%! #???????????????????? | | ?????????? # !p gg; ?????????????????????? | | ?????#????########; m!iEg##############?????????? | | ?????# ?? # =!!!# #?????????? | | ?????# ??? # =pK# #?????????? | | ?????# * ??"""" # !*@# #?????????? | | ?????# """"" # % # #?????????? | | ?????# """"" # # #?????????? | | ?????# """"" # # #?????????? | | ?????# """"" m ; #?????????? | | ?????# """"" # ; #?????????? | | ?????# # # #?????????? | | ?????# # / #?????????? | | ?????# ##;##;### #?????????? | | ?????# ###?##??# #?????????? | | ?????########"#####???????####"#########?????????? | | ????????????# #??????????????# #?????????????????? | | ????????????# #??????????????# #?????????????????? | | ????????????# #??????????????# #?????????????????? | | ????????????###??????????????###?????????????????? | | ?????????????????????????????????????????????????? | | ?????????????????????????????????????????????????? | | ?????????????????????????????????????????????????? | | ?????????????????????????????????????????????????? | | ?????????????????????????????????????????????????? | | ?????????????????????????????????????????????????? | | ?????????????????????????????????????????????????? | | ?????????????????????????????????????????????????? | | ?????????????????????????????????????????????????? | | ?????????????????????????????????????????????????? | +----------------------------------------------------+ Best States ------------- Heat Dissipation 169 Energy Generation 91 Energy Capacity 1950 Matter Stores 300 Matter Capacity 300 Sight Range 23 Robot Scan Range 16 Terrain Scan Density 10 Jamming Range 16 Cloak Strength 9 Base Temperature (-) 200 Corruption Block 3 Armor Coverage 2250 Resistance: TH 15 Resistance: EM 75 Weapon Shielding 90 Point Defense Rating 240 Weapon Cycling 20 Melee Speed Boost 20 Evasion (%) 62 Targeting Accuracy 12 Core Analysis 11 Recoil Reduction 6 Offensive Hacking 28 Authchip Count 1 Item Schematics ----------------- Cld. VTOL Module | -6/Factory | Hacked Exp. Heat Sink | -5/Zhirov | Free Assault Drone Bay | -5/Zhirov | Free Imp. Arc Thrower | -5/Zhirov | Free Exp. Optical Array | -5/Zhirov | Free Adv. Energy Well | -3/Protoforge | Archive Exp. Cooling System | -3/Protoforge | Archive Centrium Greatsword | -3/Protoforge | Archive Exp. Sensor Array | -3/Protoforge | Archive Cld. Field Propulsion Drive | -3/Protoforge | Archive Robot Schematics ------------------ H-77 Assassin | -3/Protoforge | Archive Fabricated ------------ Enh. Nova Cannon | x2 | -4/Factory | Preloaded Repaired ---------- Lgt. Treads | 59% | -10/Materials Hrd. Light Armor Plating | 57% | -8/Materials Enh. Autogun | 50% | -8/Materials Mak. Light Armor Plating | 37% | -8/Materials Adv. KE Penetrator | 11% | -4/Factory Centrium Heavy Treads | 35% | -4/Factory Enh. Nova Cannon | 5% | -4/Factory Studied --------- Phase Cannon | -7/Factory | Hacked Gravmag System | -6/Factory | Hacked Antimatter Reactor | -5/Factory | Hacked Hvy. Plasma Cannon | -5/Factory | Hacked Enh. Nova Cannon | -3/Research | Hacked HERF Cannon | -3/Research | Hacked Quantum Reactor | -2/Testing | Hacked Nova Cannon | -2/Testing | Hacked Particle Reactor | -2/Testing | Hacked Alien Tech Used ----------------- Integrated Dissipator Core Stripper Dimensional Node Initializer Transdimensional Reconstructor Core Cannon High-powered Transdimensional Reconstructor Subatomic Replicator Achievements -------------- None Challenges ------------ None Game ------ Seed AntisysCombatShield Manual? 0 Play Time 06:52:09 Cumulative 454.7 hours Start 2026.04.29 @ 18:44:30 End 2026.05.01 @ 16:05:56 Sessions 14 Manual Loads 0 Difficulty Rogue Special Mode None Game No. 163 Rogue 162 Adventurer 1 Explorer 0 Win Type - Total 21 Types 7/2/2/1/1/1/4/1/1/1 Lore% 65 Gallery% 82 Achievement% 76 Wizard Run 0 Options --------- Layout 0 ASCII 0 Keyboard 0 Movement Arrows Keybinds 0 Fullscreen 2 Font 24/Smallcaps Map View 76x50 Zoom Use 0% Tactical HUD 1 Map Filters NONE Filters NONE Steam 1 RUN: 2585bd4a-ba5e-4d20-bee4-64bd143c84be